{"text_format":"1","workbook":"xlsx","n_sheets":7,"sheets":["Start","Wizard","Power calculation","Order form","Summary","Release notes","Formula"],"not_rendered":{"charts":0,"images":5,"macros":1,"external_links":0,"defined_names":4,"comments":0,"pivot_tables":0},"unopened":[],"bounds":{"document_bytes":16777216,"sheet_cells":100000,"rows_first":2000,"rows_last":500,"rows_between":2000,"halvings":0,"cell_chars":16384,"cell_head_chars":4096},"cells_cut":0,"cells_raw":0,"read":"whole","date_system":"1900"}

{"sheet":"Start","index":0,"n_rows":8,"n_cols":2,"rows_kept":8,"cut":false,"hidden":false,"merged":[[6,1,6,8],[7,1,9,8]]}
[]
[]
[]
[]
[]
[null,"Description:"]
[null,"Please ensure to activate the Macro functionally, otherwise the calculation will  not work correctly. Please activate to continue"]
[null,"The \"Quick calculation\" is used to get a rough overview about the power consumption based on the given standby time values and selected products."]

{"sheet":"Wizard","index":1,"n_rows":90,"n_cols":16382,"rows_kept":90,"cut":false,"hidden":false,"merged":[[7,1,7,10],[80,3,80,8],[32,4,33,4],[49,1,51,8],[52,1,59,8],[41,4,41,7],[45,1,47,8],[67,1,67,2],[35,4,36,4],[32,5,33,5],[32,6,33,8],[44,1,44,8],[62,1,62,8],[63,1,63,2],[38,6,39,8],[38,5,39,5],[77,3,77,8],[78,3,78,8],[79,3,79,8],[40,4,40,6],[40,7,40,9],[40,1,40,3],[61,1,61,2],[64,1,64,8],[41,1,41,3],[42,1,42,3],[42,4,42,6],[42,7,42,9],[4,6,4,7],[27,1,27,3],[29,1,29,3],[35,6,36,8],[28,1,28,3],[30,1,30,3],[31,1,31,3],[32,1,32,3],[33,1,33,3],[34,1,34,3],[35,1,35,3],[36,1,36,3],[28,4,28,7],[31,4,31,6],[31,7,31,9],[19,9,19,10],[39,1,39,3],[29,4,29,6],[38,4,39,4],[35,5,36,5],[34,4,34,6],[37,4,37,6],[30,4,30,7],[29,7,29,9],[37,1,37,3],[38,1,38,3],[34,7,34,9],[37,7,37,9]]}
[]
[]
[null,null,null,null,null,null,null,null,null,"SPC Calculation tool "]
[]
[" "," ",null,null,null,null,"Version 3.0",null,null,null,null,null,null,null,null,null,null,null,null,null,null,null,"please select"]
[null,null,null,null,null,null,null,null,null,null,null,null,null,null,null,null,null,null,null,null,null,null,"Germany"]
[null,null,null,"General",null,null,null,null,null,null,null,"Detectors",null,null,null,null,null,null,null,null,null,null,"Austria",null,null,null,null,null,null,null,null,null,null,null,null,null,null,null,null,null,null,null,null,null,null,null,null,null,null,null,null,null,null,null,null,null,null,null,null,null,null,null,null,null,null,null,null,null,null,null,null,null,null,null,null,null,null,null,null,null,null,null,null,null,null,null,null,null,null,null,null,null,null,null,null,null,null,null,null,null,null,null,null,null,null,null,null,null,null,null,null,null,null,null,null,null,null,null,null,null,null,null,null,null,null,null,null,null,null,null,null,null,null,null,null,null,null,null,null,null,null,null,null,null,null,null,null,null,null,null,null,null,null,null,null,null,null,null,null,null,null,null,null,null,null,null,null,null,null,null,null,null,null,null,null,null,null,null,null,null,null,null,null,null,null,null,null,null,null,null,null,null,null,null,null,null,null,null,null,null,null,null,null,null,null,null,null,null,null,null,null,null,null,null,null,null,null,null,null,null,null,null,null,null,null,null,null,null,null,null,null,null,null,null,null,null,null,null,null,null,null,null,null,null,null,null,null,null,null,null,null,null,null,null,null,null,null,null,null,null,null,null,null,null,null,null,null,null,null,null,null,null,null,null,null,null,null,null,null,null,null,null,null,null,null,null,null,null,null,null,null,null,null,null,null,null,null,null,null,null,null,null,null,null,null,null,null,null,null,null,null,null,null,null,null,null,null,null,null,null,null,null,null,null,null,null,null,null,null,null,null,null,null,null,null,null,null,null,null,null,null,null,null,null,null,null,null,null,null,null,null,null,null,null,null,null,null,null,null,null,null,null,null,null,null,null,null,null,null,null,null,null,null,null,null,null,null,null,null,null,null,null,null,null,null,null,null,null,null,null,null,null,null,null,null,null,null,null,null,null,null,null,null,null,null,null,null,null,null,null,null,null,null,null,null,null,null,null,null,null,null,null,null,null,null,null,null,null,null,null,null,null,null,null,null,null,null,null,null,null,null,null,null,null,null,null,null,null,null,null,null,null,null,null,null,null,null,null,null,null,null,null,null,null,null,null,null,null,null,null,null,null,null,null,null,null,null,null,null,null,null,null,null,null,null,null,null,null,null,null,null,null,null,null,null,null,null,null,null,null,null,null,null,null,null,null,null,null,null,null,null,null,null,null,null,null,null,null,null,null,null,null,null,null,null,null,null,null,null,null,null,null,null,null,null,null,null,null,null,null,null,null,null,null,null,null,null,null,null,null,null,null,null,null,null,null,null,null,null,null,null,null,null,null,null,null,null,null,null,null,null,null,null,null,null,null,null,null,null,null,null,null,null,null,null,null,null,null,null,null,null,null,null,null,null,null,null,null,null,null,null,null,null,null,null,null,null,null,null,null,null,null,null,null,null,null,null,null,null,null,null,null,null,null,null,null,null,null,null,null,null,null,null,null,null,null,null,null,null,null,null,null,null,null,null,null,null,null,null,null,null,null,null,null,null,null,null,null,null,null,null,null,null,null,null,null,null,null,null,null,null,null,null,null,null,null,null,null,null,null,null,null,null,null,null,null,null,null,null,null,null,null,null,null,null,null,null,null,null,null,null,null,null,null,null,null,null,null,null,null,null,null,null,null,null,null,null,null,null,null,null,null,null,null,null,null,null,null,null,null,null,null,null,null,null,null,null,null,null,null,null,null,null,null,null,null,null,null,null,null,null,null,null,null,null,null,null,null,null,null,null,null,null,null,null,null,null,null,null,null,null,null,null,null,null,null,null,null,null,null,null,null,null,null,null,null,null,null,null,null,null,null,null,null,null,null,null,null,null,null,null,null,null,null,null,null,null,null,null,null,null,null,null,null,null,null,null,null,null,null,null,null,null,null,null,null,null,null,null,null,null,null,null,null,null,null,null,null,null,null,null,null,null,null,null,null,null,null,null,null,null,null,null,null,null,null,null,null,null,null,null,null,null,null,null,null,null,null,null,null,null,null,null,null,null,null,null,null,null,null,null,null,null,null,null,null,null,null,null,null,null,null,null,null,null,null,null,null,null,null,null,null,null,null,null,null,null,null,null,null,null,null,null,null,null,null,null,null,null,null,null,null,null,null,null,null,null,null,null,null,null,null,null,null,null,null,null,null,null,null,null,null,null,null,null,null,null,null,null,null,null,null,null,null,null,null,null,null,null,null,null,null,null,null,null,null,null,null,null,null,null,null,null,null,null,null,null,null,null,null,null,null,null,null,null,null,null,null,null,null,null,null,null,null,null,null,null,null,null,null,null,null,null,null,null,null,null,null,null,null,null,null,null,null,null,null,null,null,null,null,null,null,null,null,null,null,null,null,null,null,null,null,null,null,null,null,null,null,null,null,null,null,null,null,null,null,null,null,null,null,null,null,null,null,null,null,null,null,null,null,null,null,null,null,null,null,null,null,null,null,null,null,null,null,null,null,null,null,null,null,null,null,null,null,null,null,null,null,null,null,null,null,null,null,null,null,null,null,null,null,null,null,null,null,null,null,null,null,null,null,null,null,null,null,null,null,null,null,null,null,null,null,null,null,null,null,null,null,null,null,null,null,null,null,null,null,null,null,null,null,null,null,null,null,null,null,null,null,null,null,null,null,null,null,null,null,null,null,null,null,null,null,null,null,null,null,null,null,null,null,null,null,null,null,null,null,null,null,null,null,null,null,null,null,null,null,null,null,null,null,null,null,null,null,null,null,null,null,null,null,null,null,null,null,null,null,null,null,null,null,null,null,null,null,null,null,null,null,null,null,null,null,null,null,null,null,null,null,null,null,null,null,null,null,null,null,null,null,null,null,null,null,null,null,null,null,null,null,null,null,null,null,null,null,null,null,null,null,null,null,null,null,null,null,null,null,null,null,null,null,null,null,null,null,null,null,null,null,null,null,null,null,null,null,null,null,null,null,null,null,null,null,null,null,null,null,null,null,null,null,null,null,null,null,null,null,null,null,null,null,null,null,null,null,null,null,null,null,null,null,null,null,null,null,null,null,null,null,null,null,null,null,null,null,null,null,null,null,null,null,null,null,null,null,null,null,null,null,null,null,null,null,null,null,null,null,null,null,null,null,null,null,null,null,null,null,null,null,null,null,null,null,null,null,null,null,null,null,null,null,null,null,null,null,null,null,null,null,null,null,null,null,null,null,null,null,null,null,null,null,null,null,null,null,null,null,null,null,null,null,null,null,null,null,null,null,null,null,null,null,null,null,null,null,null,null,null,null,null,null,null,null,null,null,null,null,null,null,null,null,null,null,null,null,null,null,null,null,null,null,null,null,null,null,null,null,null,null,null,null,null,null,null,null,null,null,null,null,null,null,null,null,null,null,null,null,null,null,null,null,null,null,null,null,null,null,null,null,null,null,null,null,null,null,null,null,null,null,null,null,null,null,null,null,null,null,null,null,null,null,null,null,null,null,null,null,null,null,null,null,null,null,null,null,null,null,null,null,null,null,null,null,null,null,null,null,null,null,null,null,null,null,null,null,null,null,null,null,null,null,null,null,null,null,null,null,null,null,null,null,null,null,null,null,null,null,null,null,null,null,null,null,null,null,null,null,null,null,null,null,null,null,null,null,null,null,null,null,null,null,null,null,null,null,null,null,null,null,null,null,null,null,null,null,null,null,null,null,null,null,null,null,null,null,null,null,null,null,null,null,null,null,null,null,null,null,null,null,null,null,null,null,null,null,null,null,null,null,null,null,null,null,null,null,null,null,null,null,null,null,null,null,null,null,null,null,null,null,null,null,null,null,null,null,null,null,null,null,null,null,null,null,null,null,null,null,null,null,null,null,null,null,null,null,null,null,null,null,null,null,null,null,null,null,null,null,null,null,null,null,null,null,null,null,null,null,null,null,null,null,null,null,null,null,null,null,null,null,null,null,null,null,null,null,null,null,null,null,null,null,null,null,null,null,null,null,null,null,null,null,null,null,null,null,null,null,null,null,null,null,null,null,null,null,null,null,null,null,null,null,null,null,null,null,null,null,null,null,null,null,null,null,null,null,null,null,null,null,null,null,null,null,null,null,null,null,null,null,null,null,null,null,null,null,null,null,null,null,null,null,null,null,null,null,null,null,null,null,null,null,null,null,null,null,null,null,null,null,null,null,null,null,null,null,null,null,null,null,null,null,null,null,null,null,null,null,null,null,null,null,null,null,null,null,null,null,null,null,null,null,null,null,null,null,null,null,null,null,null,null,null,null,null,null,null,null,null,null,null,null,null,null,null,null,null,null,null,null,null,null,null,null,null,null,null,null,null,null,null,null,null,null,null,null,null,null,null,null,null,null,null,null,null,null,null,null,null,null,null,null,null,null,null,null,null,null,null,null,null,null,null,null,null,null,null,null,null,null,null,null,null,null,null,null,null,null,null,null,null,null,null,null,null,null,null,null,null,null,null,null,null,null,null,null,null,null,null,null,null,null,null,null,null,null,null,null,null,null,null,null,null,null,null,null,null,null,null,null,null,null,null,null,null,null,null,null,null,null,null,null,null,null,null,null,null,null,null,null,null,null,null,null,null,null,null,null,null,null,null,null,null,null,null,null,null,null,null,null,null,null,null,null,null,null,null,null,null,null,null,null,null,null,null,null,null,null,null,null,null,null,null,null,null,null,null,null,null,null,null,null,null,null,null,null,null,null,null,null,null,null,null,null,null,null,null,null,null,null,null,null,null,null,null,null,null,null,null,null,null,null,null,null,null,null,null,null,null,null,null,null,null,null,null,null,null,null,null,null,null,null,null,null,null,null,null,null,null,null,null,null,null,null,null,null,null,null,null,null,null,null,null,null,null,null,null,null,null,null,null,null,null,null,null,null,null,null,null,null,null,null,null,null,null,null,null,null,null,null,null,null,null,null,null,null,null,null,null,null,null,null,null,null,null,null,null,null,null,null,null,null,null,null,null,null,null,null,null,null,null,null,null,null,null,null,null,null,null,null,null,null,null,null,null,null,null,null,null,null,null,null,null,null,null,null,null,null,null,null,null,null,null,null,null,null,null,null,null,null,null,null,null,null,null,null,null,null,null,null,null,null,null,null,null,null,null,null,null,null,null,null,null,null,null,null,null,null,null,null,null,null,null,null,null,null,null,null,null,null,null,null,null,null,null,null,null,null,null,null,null,null,null,null,null,null,null,null,null,null,null,null,null,null,null,null,null,null,null,null,null,null,null,null,null,null,null,null,null,null,null,null,null,null,null,null,null,null,null,null,null,null,null,null,null,null,null,null,null,null,null,null,null,null,null,null,null,null,null,null,null,null,null,null,null,null,null,null,null,null,null,null,null,null,null,null,null,null,null,null,null,null,null,null,null,null,null,null,null,null,null,null,null,null,null,null,null,null,null,null,null,null,null,null,null,null,null,null,null,null,null,null,null,null,null,null,null,null,null,null,null,null,null,null,null,null,null,null,null,null,null,null,null,null,null,null,null,null,null,null,null,null,null,null,null,null,null,null,null,null,null,null,null,null,null,null,null,null,null,null,null,null,null,null,null,null,null,null,null,null,null,null,null,null,null,null,null,null,null,null,null,null,null,null,null,null,null,null,null,null,null,null,null,null,null,null,null,null,null,null,null,null,null,null,null,null,null,null,null,null,null,null,null,null,null,null,null,null,null,null,null,null,null,null,null,null,null,null,null,null,null,null,null,null,null,null,null,null,null,null,null,null,null,null,null,null,null,null,null,null,null,null,null,null,null,null,null,null,null,null,null,null,null,null,null,null,null,null,null,null,null,null,null,null,null,null,null,null,null,null,null,null,null,null,null,null,null,null,null,null,null,null,null,null,null,null,null,null,null,null,null,null,null,null,null,null,null,null,null,null,null,null,null,null,null,null,null,null,null,null,null,null,null,null,null,null,null,null,null,null,null,null,null,null,null,null,null,null,null,null,null,null,null,null,null,null,null,null,null,null,null,null,null,null,null,null,null,null,null,null,null,null,null,null,null,null,null,null,null,null,null,null,null,null,null,null,null,null,null,null,null,null,null,null,null,null,null,null,null,null,null,null,null,null,null,null,null,null,null,null,null,null,null,null,null,null,null,null,null,null,null,null,null,null,null,null,null,null,null,null,null,null,null,null,null,null,null,null,null,null,null,null,null,null,null,null,null,null,null,null,null,null,null,null,null,null,null,null,null,null,null,null,null,null,null,null,null,null,null,null,null,null,null,null,null,null,null,null,null,null,null,null,null,null,null,null,null,null,null,null,null,null,null,null,null,null,null,null,null,null,null,null,null,null,null,null,null,null,null,null,null,null,null,null,null,null,null,null,null,null,null,null,null,null,null,null,null,null,null,null,null,null,null,null,null,null,null,null,null,null,null,null,null,null,null,null,null,null,null,null,null,null,null,null,null,null,null,null,null,null,null,null,null,null,null,null,null,null,null,null,null,null,null,null,null,null,null,null,null,null,null,null,null,null,null,null,null,null,null,null,null,null,null,null,null,null,null,null,null,null,null,null,null,null,null,null,null,null,null,null,null,null,null,null,null,null,null,null,null,null,null,null,null,null,null,null,null,null,null,null,null,null,null,null,null,null,null,null,null,null,null,null,null,null,null,null,null,null,null,null,null,null,null,null,null,null,null,null,null,null,null,null,null,null,null,null,null,null,null,null,null,null,null,null,null,null,null,null,null,null,null,null,null,null,null,null,null,null,null,null,null,null,null,null,null,null,null,null,null,null,null,null,null,null,null,null,null,null,null,null,null,null,null,null,null,null,null,null,null,null,null,null,null,null,null,null,null,null,null,null,null,null,null,null,null,null,null,null,null,null,null,null,null,null,null,null,null,null,null,null,null,null,null,null,null,null,null,null,null,null,null,null,null,null,null,null,null,null,null,null,null,null,null,null,null,null,null,null,null,null,null,null,null,null,null,null,null,null,null,null,null,null,null,null,null,null,null,null,null,null,null,null,null,null,null,null,null,null,null,null,null,null,null,null,null,null,null,null,null,null,null,null,null,null,null,null,null,null,null,null,null,null,null,null,null,null,null,null,null,null,null,null,null,null,null,null,null,null,null,null,null,null,null,null,null,null,null,null,null,null,null,null,null,null,null,null,null,null,null,null,null,null,null,null,null,null,null,null,null,null,null,null,null,null,null,null,null,null,null,null,null,null,null,null,null,null,null,null,null,null,null,null,null,null,null,null,null,null,null,null,null,null,null,null,null,null,null,null,null,null,null,null,null,null,null,null,null,null,null,null,null,null,null,null,null,null,null,null,null,null,null,null,null,null,null,null,null,null,null,null,null,null,null,null,null,null,null,null,null,null,null,null,null,null,null,null,null,null,null,null,null,null,null,null,null,null,null,null,null,null,null,null,null,null,null,null,null,null,null,null,null,null,null,null,null,null,null,null,null,null,null,null,null,null,null,null,null,null,null,null,null,null,null,null,null,null,null,null,null,null,null,null,null,null,null,null,null,null,null,null,null,null,null,null,null,null,null,null,null,null,null,null,null,null,null,null,null,null,null,null,null,null,null,null,null,null,null,null,null,null,null,null,null,null,null,null,null,null,null,null,null,null,null,null,null,null,null,null,null,null,null,null,null,null,null,null,null,null,null,null,null,null,null,null,null,null,null,null,null,null,null,null,null,null,null,null,null,null,null,null,null,null,null,null,null,null,null,null,null,null,null,null,null,null,null,null,null,null,null,null,null,null,null,null,null,null,null,null,null,null,null,null,null,null,null,null,null,null,null,null,null,null,null,null,null,null,null,null,null,null,null,null,null,null,null,null,null,null,null,null,null,null,null,null,null,null,null,null,null,null,null,null,null,null,null,null,null,null,null,null,null,null,null,null,null,null,null,null,null,null,null,null,null,null,null,null,null,null,null,null,null,null,null,null,null,null,null,null,null,null,null,null,null,null,null,null,null,null,null,null,null,null,null,null,null,null,null,null,null,null,null,null,null,null,null,null,null,null,null,null,null,null,null,null,null,null,null,null,null,null,null,null,null,null,null,null,null,null,null,null,null,null,null,null,null,null,null,null,null,null,null,null,null,null,null,null,null,null,null,null,null,null,null,null,null,null,null,null,null,null,null,null,null,null,null,null,null,null,null,null,null,null,null,null,null,null,null,null,null,null,null,null,null,null,null,null,null,null,null,null,null,null,null,null,null,null,null,null,null,null,null,null,null,null,null,null,null,null,null,null,null,null,null,null,null,null,null,null,null,null,null,null,null,null,null,null,null,null,null,null,null,null,null,null,null,null,null,null,null,null,null,null,null,null,null,null,null,null,null,null,null,null,null,null,null,null,null,null,null,null,null,null,null,null,null,null,null,null,null,null,null,null,null,null,null,null,null,null,null,null,null,null,null,null,null,null,null,null,null,null,null,null,null,null,null,null,null,null,null,null,null,null,null,null,null,null,null,null,null,null,null,null,null,null,null,null,null,null,null,null,null,null,null,null,null,null,null,null,null,null,null,null,null,null,null,null,null,null,null,null,null,null,null,null,null,null,null,null,null,null,null,null,null,null,null,null,null,null,null,null,null,null,null,null,null,null,null,null,null,null,null,null,null,null,null,null,null,null,null,null,null,null,null,null,null,null,null,null,null,null,null,null,null,null,null,null,null,null,null,null,null,null,null,null,null,null,null,null,null,null,null,null,null,null,null,null,null,null,null,null,null,null,null,null,null,null,null,null,null,null,null,null,null,null,null,null,null,null,null,null,null,null,null,null,null,null,null,null,null,null,null,null,null,null,null,null,null,null,null,null,null,null,null,null,null,null,null,null,null,null,null,null,null,null,null,null,null,null,null,null,null,null,null,null,null,null,null,null,null,null,null,null,null,null,null,null,null,null,null,null,null,null,null,null,null,null,null,null,null,null,null,null,null,null,null,null,null,null,null,null,null,null,null,null,null,null,null,null,null,null,null,null,null,null,null,null,null,null,null,null,null,null,null,null,null,null,null,null,null,null,null,null,null,null,null,null,null,null,null,null,null,null,null,null,null,null,null,null,null,null,null,null,null,null,null,null,null,null,null,null,null,null,null,null,null,null,null,null,null,null,null,null,null,null,null,null,null,null,null,null,null,null,null,null,null,null,null,null,null,null,null,null,null,null,null,null,null,null,null,null,null,null,null,null,null,null,null,null,null,null,null,null,null,null,null,null,null,null,null,null,null,null,null,null,null,null,null,null,null,null,null,null,null,null,null,null,null,null,null,null,null,null,null,null,null,null,null,null,null,null,null,null,null,null,null,null,null,null,null,null,null,null,null,null,null,null,null,null,null,null,null,null,null,null,null,null,null,null,null,null,null,null,null,null,null,null,null,null,null,null,null,null,null,null,null,null,null,null,null,null,null,null,null,null,null,null,null,null,null,null,null,null,null,null,null,null,null,null,null,null,null,null,null,null,null,null,null,null,null,null,null,null,null,null,null,null,null,null,null,null,null,null,null,null,null,null,null,null,null,null,null,null,null,null,null,null,null,null,null,null,null,null,null,null,null,null,null,null,null,null,null,null,null,null,null,null,null,null,null,null,null,null,null,null,null,null,null,null,null,null,null,null,null,null,null,null,null,null,null,null,null,null,null,null,null,null,null,null,null,null,null,null,null,null,null,null,null,null,null,null,null,null,null,null,null,null,null,null,null,null,null,null,null,null,null,null,null,null,null,null,null,null,null,null,null,null,null,null,null,null,null,null,null,null,null,null,null,null,null,null,null,null,null,null,null,null,null,null,null,null,null,null,null,null,null,null,null,null,null,null,null,null,null,null,null,null,null,null,null,null,null,null,null,null,null,null,null,null,null,null,null,null,null,null,null,null,null,null,null,null,null,null,null,null,null,null,null,null,null,null,null,null,null,null,null,null,null,null,null,null,null,null,null,null,null,null,null,null,null,null,null,null,null,null,null,null,null,null,null,null,null,null,null,null,null,null,null,null,null,null,null,null,null,null,null,null,null,null,null,null,null,null,null,null,null,null,null,null,null,null,null,null,null,null,null,null,null,null,null,null,null,null,null,null,null,null,null,null,null,null,null,null,null,null,null,null,null,null,null,null,null,null,null,null,null,null,null,null,null,null,null,null,null,null,null,null,null,null,null,null,null,null,null,null,null,null,null,null,null,null,null,null,null,null,null,null,null,null,null,null,null,null,null,null,null,null,null,null,null,null,null,null,null,null,null,null,null,null,null,null,null,null,null,null,null,null,null,null,null,null,null,null,null,null,null,null,null,null,null,null,null,null,null,null,null,null,null,null,null,null,null,null,null,null,null,null,null,null,null,null,null,null,null,null,null,null,null,null,null,null,null,null,null,null,null,null,null,null,null,null,null,null,null,null,null,null,null,null,null,null,null,null,null,null,null,null,null,null,null,null,null,null,null,null,null,null,null,null,null,null,null,null,null,null,null,null,null,null,null,null,null,null,null,null,null,null,null,null,null,null,null,null,null,null,null,null,null,null,null,null,null,null,null,null,null,null,null,null,null,null,null,null,null,null,null,null,null,null,null,null,null,null,null,null,null,null,null,null,null,null,null,null,null,null,null,null,null,null,null,null,null,null,null,null,null,null,null,null,null,null,null,null,null,null,null,null,null,null,null,null,null,null,null,null,null,null,null,null,null,null,null,null,null,null,null,null,null,null,null,null,null,null,null,null,null,null,null,null,null,null,null,null,null,null,null,null,null,null,null,null,null,null,null,null,null,null,null,null,null,null,null,null,null,null,null,null,null,null,null,null,null,null,null,null,null,null,null,null,null,null,null,null,null,null,null,null,null,null,null,null,null,null,null,null,null,null,null,null,null,null,null,null,null,null,null,null,null,null,null,null,null,null,null,null,null,null,null,null,null,null,null,null,null,null,null,null,null,null,null,null,null,null,null,null,null,null,null,null,null,null,null,null,null,null,null,null,null,null,null,null,null,null,null,null,null,null,null,null,null,null,null,null,null,null,null,null,null,null,null,null,null,null,null,null,null,null,null,null,null,null,null,null,null,null,null,null,null,null,null,null,null,null,null,null,null,null,null,null,null,null,null,null,null,null,null,null,null,null,null,null,null,null,null,null,null,null,null,null,null,null,null,null,null,null,null,null,null,null,null,null,null,null,null,null,null,null,null,null,null,null,null,null,null,null,null,null,null,null,null,null,null,null,null,null,null,null,null,null,null,null,null,null,null,null,null,null,null,null,null,null,null,null,null,null,null,null,null,null,null,null,null,null,null,null,null,null,null,null,null,null,null,null,null,null,null,null,null,null,null,null,null,null,null,null,null,null,null,null,null,null,null,null,null,null,null,null,null,null,null,null,null,null,null,null,null,null,null,null,null,null,null,null,null,null,null,null,null,null,null,null,null,null,null,null,null,null,null,null,null,null,null,null,null,null,null,null,null,null,null,null,null,null,null,null,null,null,null,null,null,null,null,null,null,null,null,null,null,null,null,null,null,null,null,null,null,null,null,null,null,null,null,null,null,null,null,null,null,null,null,null,null,null,null,null,null,null,null,null,null,null,null,null,null,null,null,null,null,null,null,null,null,null,null,null,null,null,null,null,null,null,null,null,null,null,null,null,null,null,null,null,null,null,null,null,null,null,null,null,null,null,null,null,null,null,null,null,null,null,null,null,null,null,null,null,null,null,null,null,null,null,null,null,null,null,null,null,null,null,null,null,null,null,null,null,null,null,null,null,null,null,null,null,null,null,null,null,null,null,null,null,null,null,null,null,null,null,null,null,null,null,null,null,null,null,null,null,null,null,null,null,null,null,null,null,null,null,null,null,null,null,null,null,null,null,null,null,null,null,null,null,null,null,null,null,null,null,null,null,null,null,null,null,null,null,null,null,null,null,null,null,null,null,null,null,null,null,null,null,null,null,null,null,null,null,null,null,null,null,null,null,null,null,null,null,null,null,null,null,null,null,null,null,null,null,null,null,null,null,null,null,null,null,null,null,null,null,null,null,null,null,null,null,null,null,null,null,null,null,null,null,null,null,null,null,null,null,null,null,null,null,null,null,null,null,null,null,null,null,null,null,null,null,null,null,null,null,null,null,null,null,null,null,null,null,null,null,null,null,null,null,null,null,null,null,null,null,null,null,null,null,null,null,null,null,null,null,null,null,null,null,null,null,null,null,null,null,null,null,null,null,null,null,null,null,null,null,null,null,null,null,null,null,null,null,null,null,null,null,null,null,null,null,null,null,null,null,null,null,null,null,null,null,null,null,null,null,null,null,null,null,null,null,null,null,null,null,null,null,null,null,null,null,null,null,null,null,null,null,null,null,null,null,null,null,null,null,null,null,null,null,null,null,null,null,null,null,null,null,null,null,null,null,null,null,null,null,null,null,null,null,null,null,null,null,null,null,null,null,null,null,null,null,null,null,null,null,null,null,null,null,null,null,null,null,null,null,null,null,null,null,null,null,null,null,null,null,null,null,null,null,null,null,null,null,null,null,null,null,null,null,null,null,null,null,null,null,null,null,null,null,null,null,null,null,null,null,null,null,null,null,null,null,null,null,null,null,null,null,null,null,null,null,null,null,null,null,null,null,null,null,null,null,null,null,null,null,null,null,null,null,null,null,null,null,null,null,null,null,null,null,null,null,null,null,null,null,null,null,null,null,null,null,null,null,null,null,null,null,null,null,null,null,null,null,null,null,null,null,null,null,null,null,null,null,null,null,null,null,null,null,null,null,null,null,null,null,null,null,null,null,null,null,null,null,null,null,null,null,null,null,null,null,null,null,null,null,null,null,null,null,null,null,null,null,null,null,null,null,null,null,null,null,null,null,null,null,null,null,null,null,null,null,null,null,null,null,null,null,null,null,null,null,null,null,null,null,null,null,null,null,null,null,null,null,null,null,null,null,null,null,null,null,null,null,null,null,null,null,null,null,null,null,null,null,null,null,null,null,null,null,null,null,null,null,null,null,null,null,null,null,null,null,null,null,null,null,null,null,null,null,null,null,null,null,null,null,null,null,null,null,null,null,null,null,null,null,null,null,null,null,null,null,null,null,null,null,null,null,null,null,null,null,null,null,null,null,null,null,null,null,null,null,null,null,null,null,null,null,null,null,null,null,null,null,null,null,null,null,null,null,null,null,null,null,null,null,null,null,null,null,null,null,null,null,null,null,null,null,null,null,null,null,null,null,null,null,null,null,null,null,null,null,null,null,null,null,null,null,null,null,null,null,null,null,null,null,null,null,null,null,null,null,null,null,null,null,null,null,null,null,null,null,null,null,null,null,null,null,null,null,null,null,null,null,null,null,null,null,null,null,null,null,null,null,null,null,null,null,null,null,null,null,null,null,null,null,null,null,null,null,null,null,null,null,null,null,null,null,null,null,null,null,null,null,null,null,null,null,null,null,null,null,null,null,null,null,null,null,null,null,null,null,null,null,null,null,null,null,null,null,null,null,null,null,null,null,null,null,null,null,null,null,null,null,null,null,null,null,null,null,null,null,null,null,null,null,null,null,null,null,null,null,null,null,null,null,null,null,null,null,null,null,null,null,null,null,null,null,null,null,null,null,null,null,null,null,null,null,null,null,null,null,null,null,null,null,null,null,null,null,null,null,null,null,null,null,null,null,null,null,null,null,null,null,null,null,null,null,null,null,null,null,null,null,null,null,null,null,null,null,null,null,null,null,null,null,null,null,null,null,null,null,null,null,null,null,null,null,null,null,null,null,null,null,null,null,null,null,null,null,null,null,null,null,null,null,null,null,null,null,null,null,null,null,null,null,null,null,null,null,null,null,null,null,null,null,null,null,null,null,null,null,null,null,null,null,null,null,null,null,null,null,null,null,null,null,null,null,null,null,null,null,null,null,null,null,null,null,null,null,null,null,null,null,null,null,null,null,null,null,null,null,null,null,null,null,null,null,null,null,null,null,null,null,null,null,null,null,null,null,null,null,null,null,null,null,null,null,null,null,null,null,null,null,null,null,null,null,null,null,null,null,null,null,null,null,null,null,null,null,null,null,null,null,null,null,null,null,null,null,null,null,null,null,null,null,null,null,null,null,null,null,null,null,null,null,null,null,null,null,null,null,null,null,null,null,null,null,null,null,null,null,null,null,null,null,null,null,null,null,null,null,null,null,null,null,null,null,null,null,null,null,null,null,null,null,null,null,null,null,null,null,null,null,null,null,null,null,null,null,null,null,null,null,null,null,null,null,null,null,null,null,null,null,null,null,null,null,null,null,null,null,null,null,null,null,null,null,null,null,null,null,null,null,null,null,null,null,null,null,null,null,null,null,null,null,null,null,null,null,null,null,null,null,null,null,null,null,null,null,null,null,null,null,null,null,null,null,null,null,null,null,null,null,null,null,null,null,null,null,null,null,null,null,null,null,null,null,null,null,null,null,null,null,null,null,null,null,null,null,null,null,null,null,null,null,null,null,null,null,null,null,null,null,null,null,null,null,null,null,null,null,null,null,null,null,null,null,null,null,null,null,null,null,null,null,null,null,null,null,null,null,null,null,null,null,null,null,null,null,null,null,null,null,null,null,null,null,null,null,null,null,null,null,null,null,null,null,null,null,null,null,null,null,null,null,null,null,null,null,null,null,null,null,null,null,null,null,null,null,null,null,null,null,null,null,null,null,null,null,null,null,null,null,null,null,null,null,null,null,null,null,null,null,null,null,null,null,null,null,null,null,null,null,null,null,null,null,null,null,null,null,null,null,null,null,null,null,null,null,null,null,null,null,null,null,null,null,null,null,null,null,null,null,null,null,null,null,null,null,null,null,null,null,null,null,null,null,null,null,null,null,null,null,null,null,null,null,null,null,null,null,null,null,null,null,null,null,null,null,null,null,null,null,null,null,null,null,null,null,null,null,null,null,null,null,null,null,null,null,null,null,null,null,null,null,null,null,null,null,null,null,null,null,null,null,null,null,null,null,null,null,null,null,null,null,null,null,null,null,null,null,null,null,null,null,null,null,null,null,null,null,null,null,null,null,null,null,null,null,null,null,null,null,null,null,null,null,null,null,null,null,null,null,null,null,null,null,null,null,null,null,null,null,null,null,null,null,null,null,null,null,null,null,null,null,null,null,null,null,null,null,null,null,null,null,null,null,null,null,null,null,null,null,null,null,null,null,null,null,null,null,null,null,null,null,null,null,null,null,null,null,null,null,null,null,null,null,null,null,null,null,null,null,null,null,null,null,null,null,null,null,null,null,null,null,null,null,null,null,null,null,null,null,null,null,null,null,null,null,null,null,null,null,null,null,null,null,null,null,null,null,null,null,null,null,null,null,null,null,null,null,null,null,null,null,null,null,null,null,null,null,null,null,null,null,null,null,null,null,null,null,null,null,null,null,null,null,null,null,null,null,null,null,null,null,null,null,null,null,null,null,null,null,null,null,null,null,null,null,null,null,null,null,null,null,null,null,null,null,null,null,null,null,null,null,null,null,null,null,null,null,null,null,null,null,null,null,null,null,null,null,null,null,null,null,null,null,null,null,null,null,null,null,null,null,null,null,null,null,null,null,null,null,null,null,null,null,null,null,null,null,null,null,null,null,null,null,null,null,null,null,null,null,null,null,null,null,null,null,null,null,null,null,null,null,null,null,null,null,null,null,null,null,null,null,null,null,null,null,null,null,null,null,null,null,null,null,null,null,null,null,null,null,null,null,null,null,null,null,null,null,null,null,null,null,null,null,null,null,null,null,null,null,null,null,null,null,null,null,null,null,null,null,null,null,null,null,null,null,null,null,null,null,null,null,null,null,null,null,null,null,null,null,null,null,null,null,null,null,null,null,null,null,null,null,null,null,null,null,null,null,null,null,null,null,null,null,null,null,null,null,null,null,null,null,null,null,null,null,null,null,null,null,null,null,null,null,null,null,null,null,null,null,null,null,null,null,null,null,null,null,null,null,null,null,null,null,null,null,null,null,null,null,null,null,null,null,null,null,null,null,null,null,null,null,null,null,null,null,null,null,null,null,null,null,null,null,null,null,null,null,null,null,null,null,null,null,null,null,null,null,null,null,null,null,null,null,null,null,null,null,null,null,null,null,null,null,null,null,null,null,null,null,null,null,null,null,null,null,null,null,null,null,null,null,null,null,null,null,null,null,null,null,null,null,null,null,null,null,null,null,null,null,null,null,null,null,null,null,null,null,null,null,null,null,null,null,null,null,null,null,null,null,null,null,null,null,null,null,null,null,null,null,null,null,null,null,null,null,null,null,null,null,null,null,null,null,null,null,null,null,null,null,null,null,null,null,null,null,null,null,null,null,null,null,null,null,null,null,null,null,null,null,null,null,null,null,null,null,null,null,null,null,null,null,null,null,null,null,null,null,null,null,null,null,null,null,null,null,null,null,null,null,null,null,null,null,null,null,null,null,null,null,null,null,null,null,null,null,null,null,null,null,null,null,null,null,null,null,null,null,null,null,null,null,null,null,null,null,null,null,null,null,null,null,null,null,null,null,null,null,null,null,null,null,null,null,null,null,null,null,null,null,null,null,null,null,null,null,null,null,null,null,null,null,null,null,null,null,null,null,null,null,null,null,null,null,null,null,null,null,null,null,null,null,null,null,null,null,null,null,null,null,null,null,null,null,null,null,null,null,null,null,null,null,null,null,null,null,null,null,null,null,null,null,null,null,null,null,null,null,null,null,null,null,null,null,null,null,null,null,null,null,null,null,null,null,null,null,null,null,null,null,null,null,null,null,null,null,null,null,null,null,null,null,null,null,null,null,null,null,null,null,null,null,null,null,null,null,null,null,null,null,null,null,null,null,null,null,null,null,null,null,null,null,null,null,null,null,null,null,null,null,null,null,null,null,null,null,null,null,null,null,null,null,null,null,null,null,null,null,null,null,null,null,null,null,null,null,null,null,null,null,null,null,null,null,null,null,null,null,null,null,null,null,null,null,null,null,null,null,null,null,null,null,null,null,null,null,null,null,null,null,null,null,null,null,null,null,null,null,null,null,null,null,null,null,null,null,null,null,null,null,null,null,null,null,null,null,null,null,null,null,null,null,null,null,null,null,null,null,null,null,null,null,null,null,null,null,null,null,null,null,null,null,null,null,null,null,null,null,null,null,null,null,null,null,null,null,null,null,null,null,null,null,null,null,null,null,null,null,null,null,null,null,null,null,null,null,null,null,null,null,null,null,null,null,null,null,null,null,null,null,null,null,null,null,null,null,null,null,null,null,null,null,null,null,null,null,null,null,null,null,null,null,null,null,null,null,null,null,null,null,null,null,null,null,null,null,null,null,null,null,null,null,null,null,null,null,null,null,null,null,null,null,null,null,null,null,null,null,null,null,null,null,null,null,null,null,null,null,null,null,null,null,null,null,null,null,null,null,null,null,null,null,null,null,null,null,null,null,null,null,null,null,null,null,null,null,null,null,null,null,null,null,null,null,null,null,null,null,null,null,null,null,null,null,null,null,null,null,null,null,null,null,null,null,null,null,null,null,null,null,null,null,null,null,null,null,null,null,null,null,null,null,null,null,null,null,null,null,null,null,null,null,null,null,null,null,null,null,null,null,null,null,null,null,null,null,null,null,null,null,null,null,null,null,null,null,null,null,null,null,null,null,null,null,null,null,null,null,null,null,null,null,null,null,null,null,null,null,null,null,null,null,null,null,null,null,null,null,null,null,null,null,null,null,null,null,null,null,null,null,null,null,null,null,null,null,null,null,null,null,null,null,null,null,null,null,null,null,null,null,null,null,null,null,null,null,null,null,null,null,null,null,null,null,null,null,null,null,null,null,null,null,null,null,null,null,null,null,null,null,null,null,null,null,null,null,null,null,null,null,null,null,null,null,null,null,null,null,null,null,null,null,null,null,null,null,null,null,null,null,null,null,null,null,null,null,null,null,null,null,null,null,null,null,null,null,null,null,null,null,null,null,null,null,null,null,null,null,null,null,null,null,null,null,null,null,null,null,null,null,null,null,null,null,null,null,null,null,null,null,null,null,null,null,null,null,null,null,null,null,null,null,null,null,null,null,null,null,null,null,null,null,null,null,null,null,null,null,null,null,null,null,null,null,null,null,null,null,null,null,null,null,null,null,null,null,null,null,null,null,null,null,null,null,null,null,null,null,null,null,null,null,null,null,null,null,null,null,null,null,null,null,null,null,null,null,null,null,null,null,null,null,null,null,null,null,null,null,null,null,null,null,null,null,null,null,null,null,null,null,null,null,null,null,null,null,null,null,null,null,null,null,null,null,null,null,null,null,null,null,null,null,null,null,null,null,null,null,null,null,null,null,null,null,null,null,null,null,null,null,null,null,null,null,null,null,null,null,null,null,null,null,null,null,null,null,null,null,null,null,null,null,null,null,null,null,null,null,null,null,null,null,null,null,null,null,null,null,null,null,null,null,null,null,null,null,null,null,null,null,null,null,null,null,null,null,null,null,null,null,null,null,null,null,null,null,null,null,null,null,null,null,null,null,null,null,null,null,null,null,null,null,null,null,null,null,null,null,null,null,null,null,null,null,null,null,null,null,null,null,null,null,null,null,null,null,null,null,null,null,null,null,null,null,null,null,null,null,null,null,null,null,null,null,null,null,null,null,null,null,null,null,null,null,null,null,null,null,null,null,null,null,null,null,null,null,null,null,null,null,null,null,null,null,null,null,null,null,null,null,null,null,null,null,null,null,null,null,null,null,null,null,null,null,null,null,null,null,null,null,null,null,null,null,null,null,null,null,null,null,null,null,null,null,null,null,null,null,null,null,null,null,null,null,null,null,null,null,null,null,null,null,null,null,null,null,null,null,null,null,null,null,null,null,null,null,null,null,null,null,null,null,null,null,null,null,null,null,null,null,null,null,null,null,null,null,null,null,null,null,null,null,null,null,null,null,null,null,null,null,null,null,null,null,null,null,null,null,null,null,null,null,null,null,null,null,null,null,null,null,null,null,null,null,null,null,null,null,null,null,null,null,null,null,null,null,null,null,null,null,null,null,null,null,null,null,null,null,null,null,null,null,null,null,null,null,null,null,null,null,null,null,null,null,null,null,null,null,null,null,null,null,null,null,null,null,null,null,null,null,null,null,null,null,null,null,null,null,null,null,null,null,null,null,null,null,null,null,null,null,null,null,null,null,null,null,null,null,null,null,null,null,null,null,null,null,null,null,null,null,null,null,null,null,null,null,null,null,null,null,null,null,null,null,null,null,null,null,null,null,null,null,null,null,null,null,null,null,null,null,null,null,null,null,null,null,null,null,null,null,null,null,null,null,null,null,null,null,null,null,null,null,null,null,null,null,null,null,null,null,null,null,null,null,null,null,null,null,null,null,null,null,null,null,null,null,null,null,null,null,null,null,null,null,null,null,null,null,null,null,null,null,null,null,null,null,null,null,null,null,null,null,null,null,null,null,null,null,null,null,null,null,null,null,null,null,null,null,null,null,null,null,null,null,null,null,null,null,null,null,null,null,null,null,null,null,null,null,null,null,null,null,null,null,null,null,null,null,null,null,null,null,null,null,null,null,null,null,null,null,null,null,null,null,null,null,null,null,null,null,null,null,null,null,null,null,null,null,null,null,null,null,null,null,null,null,null,null,null,null,null,null,null,null,null,null,null,null,null,null,null,null,null,null,null,null,null,null,null,null,null,null,null,null,null,null,null,null,null,null,null,null,null,null,null,null,null,null,null,null,null,null,null,null,null,null,null,null,null,null,null,null,null,null,null,null,null,null,null,null,null,null,null,null,null,null,null,null,null,null,null,null,null,null,null,null,null,null,null,null,null,null,null,null,null,null,null,null,null,null,null,null,null,null,null,null,null,null,null,null,null,null,null,null,null,null,null,null,null,null,null,null,null,null,null,null,null,null,null,null,null,null,null,null,null,null,null,null,null,null,null,null,null,null,null,null,null,null,null,null,null,null,null,null,null,null,null,null,null,null,null,null,null,null,null,null,null,null,null,null,null,null,null,null,null,null,null,null,null,null,null,null,null,null,null,null,null,null,null,null,null,null,null,null,null,null,null,null,null,null,null,null,null,null,null,null,null,null,null,null,null,null,null,null,null,null,null,null,null,null,null,null,null,null,null,null,null,null,null,null,null,null,null,null,null,null,null,null,null,null,null,null,null,null,null,null,null,null,null,null,null,null,null,null,null,null,null,null,null,null,null,null,null,null,null,null,null,null,null,null,null,null,null,null,null,null,null,null,null,null,null,null,null,null,null,null,null,null,null,null,null,null,null,null,null,null,null,null,null,null,null,null,null,null,null,null,null,null,null,null,null,null,null,null,null,null,null,null,null,null,null,null,null,null,null,null,null,null,null,null,null,null,null,null,null,null,null,null,null,null,null,null,null,null,null,null,null,null,null,null,null,null,null,null,null,null,null,null,null,null,null,null,null,null,null,null,null,null,null,null,null,null,null,null,null,null,null,null,null,null,null,null,null,null,null,null,null,null,null,null,null,null,null,null,null,null,null,null,null,null,null,null,null,null,null,null,null,null,null,null,null,null,null,null,null,null,null,null,null,null,null,null,null,null,null,null,null,null,null,null,null,null,null,null,null,null,null,null,null,null,null,null,null,null,null,null,null,null,null,null,null,null,null,null,null,null,null,null,null,null,null,null,null,null,null,null,null,null,null,null,null,null,null,null,null,null,null,null,null,null,null,null,null,null,null,null,null,null,null,null,null,null,null,null,null,null,null,null,null,null,null,null,null,null,null,null,null,null,null,null,null,null,null,null,null,null,null,null,null,null,null,null,null,null,null,null,null,null,null,null,null,null,null,null,null,null,null,null,null,null,null,null,null,null,null,null,null,null,null,null,null,null,null,null,null,null,null,null,null,null,null,null,null,null,null,null,null,null,null,null,null,null,null,null,null,null,null,null,null,null,null,null,null,null,null,null,null,null,null,null,null,null,null,null,null,null,null,null,null,null,null,null,null,null,null,null,null,null,null,null,null,null,null,null,null,null,null,null,null,null,null,null,null,null,null,null,null,null,null,null,null,null,null,null,null,null,null,null,null,null,null,null,null,null,null,null,null,null,null,null,null,null,null,null,null,null,null,null,null,null,null,null,null,null,null,null,null,null,null,null,null,null,null,null,null,null,null,null,null,null,null,null,null,null,null,null,null,null,null,null,null,null,null,null,null,null,null,null,null,null,null,null,null,null,null,null,null,null,null,null,null,null,null,null,null,null,null,null,null,null,null,null,null,null,null,null,null,null,null,null,null,null,null,null,null,null,null,null,null,null,null,null,null,null,null,null,null,null,null,null,null,null,null,null,null,null,null,null,null,null,null,null,null,null,null,null,null,null,null,null,null,null,null,null,null,null,null,null,null,null,null,null,null,null,null,null,null,null,null,null,null,null,null,null,null,null,null,null,null,null,null,null,null,null,null,null,null,null,null,null,null,null,null,null,null,null,null,null,null,null,null,null,null,null,null,null,null,null,null,null,null,null,null,null,null,null,null,null,null,null,null,null,null,null,null,null,null,null,null,null,null,null,null,null,null,null,null,null,null,null,null,null,null,null,null,null,null,null,null,null,null,null,null,null,null,null,null,null,null,null,null,null,null,null,null,null,null,null,null,null,null,null,null,null,null,null,null,null,null,null,null,null,null,null,null,null,null,null,null,null,null,null,null,null,null,null,null,null,null,null,null,null,null,null,null,null,null,null,null,null,null,null,null,null,null,null,null,null,null,null,null,null,null,null,null,null,null,null,null,null,null,null,null,null,null,null,null,null,null,null,null,null,null,null,null,null,null,null,null,null,null,null,null,null,null,null,null,null,null,null,null,null,null,null,null,null,null,null,null,null,null,null,null,null,null,null,null,null,null,null,null,null,null,null,null,null,null,null,null,null,null,null,null,null,null,null,null,null,null,null,null,null,null,null,null,null,null,null,null,null,null,null,null,null,null,null,null,null,null,null,null,null,null,null,null,null,null,null,null,null,null,null,null,null,null,null,null,null,null,null,null,null,null,null,null,null,null,null,null,null,null,null,null,null,null,null,null,null,null,null,null,null,null,null,null,null,null,null,null,null,null,null,null,null,null,null,null,null,null,null,null,null,null,null,null,null,null,null,null,null,null,null,null,null,null,null,null,null,null,null,null,null,null,null,null,null,null,null,null,null,null,null,null,null,null,null,null,null,null,null,null,null,null,null,null,null,null,null,null,null,null,null,null,null,null,null,null,null,null,null,null,null,null,null,null,null,null,null,null,null,null,null,null,null,null,null,null,null,null,null,null,null,null,null,null,null,null,null,null,null,null,null,null,null,null,null,null,null,null,null,null,null,null,null,null,null,null,null,null,null,null,null,null,null,null,null,null,null,null,null,null,null,null,null,null,null,null,null,null,null,null,null,null,null,null,null,null,null,null,null,null,null,null,null,null,null,null,null,null,null,null,null,null,null,null,null,null,null,null,null,null,null,null,null,null,null,null,null,null,null,null,null,null,null,null,null,null,null,null,null,null,null,null,null,null,null,null,null,null,null,null,null,null,null,null,null,null,null,null,null,null,null,null,null,null,null,null,null,null,null,null,null,null,null,null,null,null,null,null,null,null,null,null,null,null,null,null,null,null,null,null,null,null,null,null,null,null,null,null,null,null,null,null,null,null,null,null,null,null,null,null,null,null,null,null,null,null,null,null,null,null,null,null,null,null,null,null,null,null,null,null,null,null,null,null,null,null,null,null,null,null,null,null,null,null,null,null,null,null,null,null,null,null,null,null,null,null,null,null,null,null,null,null,null,null,null,null,null,null,null,null,null,null,null,null,null,null,null,null,null,null,null,null,null,null,null,null,null,null,null,null,null,null,null,null,null,null,null,null,null,null,null,null,null,null,null,null,null,null,null,null,null,null,null,null,null,null,null,null,null,null,null,null,null,null,null,null,null,null,null,null,null,null,null,null,null,null,null,null,null,null,null,null,null,null,null,null,null,null,null,null,null,null,null,null,null,null,null,null,null,null,null,null,null,null,null,null,null,null,null,null,null,null,null,null,null,null,null,null,null,null,null,null,null,null,null,null,null,null,null,null,null,null,null,null,null,null,null,null,null,null,null,null,null,null,null,null,null,null,null,null,null,null,null,null,null,null,null,null,null,null,null,null,null,null,null,null,null,null,null,null,null,null,null,null,null,null,null,null,null,null,null,null,null,null,null,null,null,null,null,null,null,null,null,null,null,null,null,null,null,null,null,null,null,null,null,null,null,null,null,null,null,null,null,null,null,null,null,null,null,null,null,null,null,null,null,null,null,null,null,null,null,null,null,null,null,null,null,null,null,null,null,null,null,null,null,null,null,null,null,null,null,null,null,null,null,null,null,null,null,null,null,null,null,null,null,null,null,null,null,null,null,null,null,null,null,null,null,null,null,null,null,null,null,null,null,null,null,null,null,null,null,null,null,null,null,null,null,null,null,null,null,null,null,null,null,null,null,null,null,null,null,null,null,null,null,null,null,null,null,null,null,null,null,null,null,null,null,null,null,null,null,null,null,null,null,null,null,null,null,null,null,null,null,null,null,null,null,null,null,null,null,null,null,null,null,null,null,null,null,null,null,null,null,null,null,null,null,null,null,null,null,null,null,null,null,null,null,null,null,null,null,null,null,null,null,null,null,null,null,null,null,null,null,null,null,null,null,null,null,null,null,null,null,null,null,null,null,null,null,null,null,null,null,null,null,null,null,null,null,null,null,null,null,null,null,null,null,null,null,null,null,null,null,null,null,null,null,null,null,null,null,null,null,null,null,null,null,null,null,null,null,null,null,null,null,null,null,null,null,null,null,null,null,null,null,null,null,null,null,null,null,null,null,null,null,null,null,null,null,null,null,null,null,null,null,null,null,null,null,null,null,null,null,null,null,null,null,null,null,null,null,null,null,null,null,null,null,null,null,null,null,null,null,null,null,null,null,null,null,null,null,null,null,null,null,null,null,null,null,null,null,null,null,null,null,null,null,null,null,null,null,null,null,null,null,null,null,null,null,null,null,null,null,null,null,null,null,null,null,null,null,null,null,null,null,null,null,null,null,null,null,null,null,null,null,null,null,null,null,null,null,null,null,null,null,null,null,null,null,null,null,null,null,null,null,null,null,null,null,null,null,null,null,null,null,null,null,null,null,null,null,null,null,null,null,null,null,null,null,null,null,null,null,null,null,null,null,null,null,null,null,null,null,null,null,null,null,null,null,null,null,null,null,null,null,null,null,null,null,null,null,null,null,null,null,null,null,null,null,null,null,null,null,null,null,null,null,null,null,null,null,null,null,null,null,null,null,null,null,null,null,null,null,null,null,null,null,null,null,null,null,null,null,null,null,null,null,null,null,null,null,null,null,null,null,null,null,null,null,null,null,null,null,null,null,null,null,null,null,null,null,null,null,null,null,null,null,null,null,null,null,null,null,null,null,null,null,null,null,null,null,null,null,null,null,null,null,null,null,null,null,null,null,null,null,null,null,null,null,null,null,null,null,null,null,null,null,null,null,null,null,null,null,null,null,null,null,null,null,null,null,null,null,null,null,null,null,null,null,null,null,null,null,null,null,null,null,null,null,null,null,null,null,null,null,null,null,null,null,null,null,null,null,null,null,null,null,null,null,null,null,null,null,null,null,null,null,null,null,null,null,null,null,null,null,null,null,null,null,null,null,null,null,null,null,null,null,null,null,null,null,null,null,null,null,null,null,null,null,null,null,null,null,null,null,null,null,null,null,null,null,null,null,null,null,null,null,null,null,null,null,null,null,null,null,null,null,null,null,null,null,null,null,null,null,null,null,null,null,null,null,null,null,null,null,null,null,null,null,null,null,null,null,null,null,null,null,null,null,null,null,null,null,null,null,null,null,null,null,null,null,null,null,null,null,null,null,null,null,null,null,null,null,null,null,null,null,null,null,null,null,null,null,null,null,null,null,null,null,null,null,null,null,null,null,null,null,null,null,null,null,null,null,null,null,null,null,null,null,null,null,null,null,null,null,null,null,null,null,null,null,null,null,null,null,null,null,null,null,null,null,null,null,null,null,null,null,null,null,null,null,null,null,null,null,null,null,null,null,null,null,null,null,null,null,null,null,null,null,null,null,null,null,null,null,null,null,null,null,null,null,null,null,null,null,null,null,null,null,null,null,null,null,null,null,null,null,null,null,null,null,null,null,null,null,null,null,null,null,null,null,null,null,null,null,null,null,null,null,null,null,null,null,null,null,null,null,null,null,null,null,null,null,null,null,null,null,null,null,null,null,null,null,null,null,null,null,null,null,null,null,null,null,null,null,null,null,null,null,null,null,null,null,null,null,null,null,null,null,null,null,null,null,null,null,null,null,null,null,null,null,null,null,null,null,null,null,null,null,null,null,null,null,null,null,null,null,null,null,null,null,null,null,null,null,null,null,null,null,null,null,null,null,null,null,null,null,null,null,null,null,null,null,null,null,null,null,null,null,null,null,null,null,null,null,null,null,null,null,null,null,null,null,null,null,null,null,null,null,null,null,null,null,null,null,null,null,null,null,null,null,null,null,null,null,null,null,null,null,null,null,null,null,null,null,null,null,null,null,null,null,null,null,null,null,null,null,null,null,null,null,null,null,null,null,null,null,null,null,null,null,null,null,null,null,null,null,null,null,null,null,null,null,null,null,null,null,null,null,null,null,null,null,null,null,null,null,null,null,null,null,null,null,null,null,null,null,null,null,null,null,null,null,null,null,null,null,null,null,null,null,null,null,null,null,null,null,null,null,null,null,null,null,null,null,null,null,null,null,null,null,null,null,null,null,null,null,null,null,null,null,null,null,null,null,null,null,null,null,null,null,null,null,null,null,null,null,null,null,null,null,null,null,null,null,null,null,null,null,null,null,null,null,null,null,null,null,null,null,null,null,null,null,null,null,null,null,null,null,null,null,null,null,null,null,null,null,null,null,null,null,null,null,null,null,null,null,null,null,null,null,null,null,null,null,null,null,null,null,null,null,null,null,null,null,null,null,null,null,null,null,null,null,null,null,null,null,null,null,null,null,null,null,null,null,null,null,null,null,null,null,null,null,null,null,null,null,null,null,null,null,null,null,null,null,null,null,null,null,null,null,null,null,null,null,null,null,null,null,null,null,null,null,null,null,null,null,null,null,null,null,null,null,null,null,null,null,null,null,null,null,null,null,null,null,null,null,null,null,null,null,null,null,null,null,null,null,null,null,null,null,null,null,null,null,null,null,null,null,null,null,null,null,null,null,null,null,null,null,null,null,null,null,null,null,null,null,null,null,null,null,null,null,null,null,null,null,null,null,null,null,null,null,null,null,null,null,null,null,null,null,null,null,null,null,null,null,null,null,null,null,null,null,null,null,null,null,null,null,null,null,null,null,null,null,null,null,null,null,null,null,null,null,null,null,null,null,null,null,null,null,null,null,null,null,null,null,null,null,null,null,null,null,null,null,null,null,null,null,null,null,null,null,null,null,null,null,null,null,null,null,null,null,null,null,null,null,null,null,null,null,null,null,null,null,null,null,null,null,null,null,null,null,null,null,null,null,null,null,null,null,null,null,null,null,null,null,null,null,null,null,null,null,null,null,null,null,null,null,null,null,null,null,null,null,null,null,null,null,null,null,null,null,null,null,null,null,null,null,null,null,null,null,null,null,null,null,null,null,null,null,null,null,null,null,null,null,null,null,null,null,null,null,null,null,null,null,null,null,null,null,null,null,null,null,null,null,null,null,null,null,null,null,null,null,null,null,null,null,null,null,null,null,null,null,null,null,null,null,null,null,null,null,null,null,null,null,null,null,null,null,null,null,null,null,null,null,null,null,null,null,null,null,null,null,null,null,null,null,null,null,null,null,null,null,null,null,null,null,null,null,null,null,null,null,null,null,null,null,null,null,null,null,null,null,null,null,null,null,null,null,null,null,null,null,null,null,null,null,null,null,null,null,null,null,null,null,null,null,null,null,null,null,null,null,null,null,null,null,null,null,null,null,null,null,null,null,null,null,null,null,null,null,null,null,null,null,null,null,null,null,null,null,null,null,null,null,null,null,null,null,null,null,null,null,null,null,null,null,null,null,null,null,null,null,null,null,null,null,null,null,null,null,null,null,null,null,null,null,null,null,null,null,null,null,null,null,null,null,null,null,null,null,null,null,null,null,null,null,null,null,null,null,null,null,null,null,null,null,null,null,null,null,null,null,null,null,null,null,null,null,null,null,null,null,null,null,null,null,null,null,null,null,null,null,null,null,null,null,null,null,null,null,null,null,null,null,null,null,null,null,null,null,null,null,null,null,null,null,null,null,null,null,null,null,null,null,null,null,null,null,null,null,null,null,null,null,null,null,null,null,null,null,null,null,null,null,null,null,null,null,null,null,null,null,null,null,null,null,null,null,null,null,null,null,null,null,null,null,null,null,null,null,null,null,null,null,null,null,null,null,null,null,null,null,null,null,null,null,null,null,null,null,null,null,null,null,null,null,null,null,null,null,null,null,null,null,null,null,null,null,null,null,null,null,null,null,null,null,null,null,null,null,null,null,null,null,null,null,null,null,null,null,null,null,null,null,null,null,null,null,null,null,null,null,null,null,null,null,null,null,null,null,null,null,null,null,null,null,null,null,null,null,null,null,null,null,null,null,null,null,null,null,null,null,null,null,null,null,null,null,null,null,null,null,null,null,null,null,null,null,null,null,null,null,null,null,null,null,null,null,null,null,null,null,null,null,null,null,null,null,null,null,null,null,null,null,null,null,null,null,null,null,null,null,null,null,null,null,null,null,null,null,null,null,null,null,null,null,null,null,null,null,null,null,null,null,null,null,null,null,null,null,null,null,null,null,null,null,null,null,null,null,null,null,null,null,null,null,null,null,null,null,null,null,null,null,null,null,null,null,null,null,null,null,null,null,null,null,null,null,null,null,null,null,null,null,null,null,null,null,null,null,null,null,null,null,null,null,null,null,null,null,null,null,null,null,null,null,null,null,null,null,null,null,null,null,null,null,null,null,null,null,null,null,null,null,null,null,null,null,null,null,null,null,null,null,null,null,null,null,null,null,null,null,null,null,null,null,null,null,null,null,null,null,null,null,null,null,null,null,null,null,null,null,null,null,null,null,null,null,null,null,null,null,null,null,null,null,null,null,null,null,null,null,null,null,null,null,null,null,null,null,null,null,null,null,null,null,null,null,null,null,null,null,null,null,null,null,null,null,null,null,null,null,null,null,null,null,null,null,null,null,null,null,null,null,null,null,null,null,null,null,null,null,null,null,null,null,null,null,null,null,null,null,null,null,null,null,null,null,null,null,null,null,null,null,null,null,null,null,null,null,null,null,null,null,null,null,null,null,null,null,null,null,null,null,null,null,null,null,null,null,null,null,null,null,null,null,null,null,null,null,null,null,null,null,null,null,null,null,null,null,null,null,null,null,null,null,null,null,null,null,null,null,null,null,null,null,null,null,null,null,null,null,null,null,null,null,null,null,null,null,null,null,null,null,null,null,null,null,null,null,null,null,null,null,null,null,null,null,null,null,null,null,null,null,null,null,null,null,null,null,null,null,null,null,null,null,null,null,null,null,null,null,null,null,null,null,null,null,null,null,null,null,null,null,null,null,null,null,null,null,null,null,null,null,null,null,null,null,null,null,null,null,null,null,null,null,null,null,null,null,null,null,null,null,null,null,null,null,null,null,null,null,null,null,null,null,null,null,null,null,null,null,null,null,null,null,null,null,null,null,null,null,null,null,null,null,null,null,null,null,null,null,null,null,null,null,null,null,null,null,null,null,null,null,null,null,null,null,null,null,null,null,null,null,null,null,null,null,null,null,null,null,null,null,null,null,null,null,null,null,null,null,null,null,null,null,null,null,null,null,null,null,null,null,null,null,null,null,null,null,null,null,null,null,null,null,null,null,null,null,null,null,null,null,null,null,null,null,null,null,null,null,null,null,null,null,null,null,null,null,null,null,null,null,null,null,null,null,null,null,null,null,null,null,null,null,null,null,null,null,null,null,null,null,null,null,null,null,null,null,null,null,null,null,null,null,null,null,null,null,null,null,null,null,null,null,null,null,null,null,null,null,null,null,null,null,null,null,null,null,null,null,null,null,null,null,null,null,null,null,null,null,null,null,null,null,null,null,null,null,null,null,null,null,null,null,null,null,null,null,null,null,null,null,null,null,null,null,null,null,null,null,null,null,null,null,null,null,null,null,null,null,null,null,null,null,null,null,null,null,null,null,null,null,null,null,null,null,null,null,null,null,null,null,null,null,null,null,null,null,null,null,null,null,null,null,null,null,null,null,null,null,null,null,null,null,null,null,null,null,null,null,null,null,null,null,null,null,null,null,null,null,null,null,null,null,null,null,null,null,null,null,null,null,null,null,null,null,null,null,null,null,null,null,null,null,null,null,null,null,null,null,null,null,null,null,null,null,null,null,null,null,null,null,null,null,null,null,null,null,null,null,null,null,null,null,null,null,null,null,null,null,null,null,null,null,null,null,null,null,null,null,null,null,null,null,null,null,null,null,null,null,null,null,null,null,null,null,null,null,null,null,null,null,null,null,null,null,null,null,null,null,null,null,null,null,null,null,null,null,null,null,null,null,null,null,null,null,null,null,null,null,null,null,null,null,null,null,null,null,null,null,null,null,null,null,null,null,null,null,null,null,null,null,null,null,null,null,null,null,null,null,null,null,null,null,null,null,null,null,null,null,null,null,null,null,null,null,null,null,null,null,null,null,null,null,null,null,null,null,null,null,null,null,null,null,null,null,null,null,null,null,null,null,null,null,null,null,null,null,null,null,null,null,null,null,null,null,null,null,null,null,null,null,null,null,null,null,null,null,null,null,null,null,null,null,null,null,null,null,null,null,null,null,null,null,null,null,null,null,null,null,null,null,null,null,null,null,null,null,null,null,null,null,null,null,null,null,null,null,null,null,null,null,null,null,null,null,null,null,null,null,null,null,null,null,null,null,null,null,null,null,null,null,null,null,null,null,null,null,null,null,null,null,null,null,null,null,null,null,null,null,null,null,null,null,null,null,null,null,null,null,null,null,null,null,null,null,null,null,null,null,null,null,null,null,null,null,null,null,null,null,null,null,null,null,null,null,null,null,null,null,null,null,null,null,null,null,null,null,null,null,null,null,null,null,null,null,null,null,null,null,null,null,null,null,null,null,null,null,null,null,null,null,null,null,null,null,null,null,null,null,null,null,null,null,null,null,null,null,null,null,null,null,null,null,null,null,null,null,null,null,null,null,null,null,null,null,null,null,null,null,null,null,null,null,null,null,null,null,null,null,null,null,null,null,null,null,null,null,null,null,null,null,null,null,null,null,null,null,null,null,null,null,null,null,null,null,null,null,null,null,null,null,null,null,null,null,null,null,null,null,null,null,null,null,null,null,null,null,null,null,null,null,null,null,null,null,null,null,null,null,null,null,null,null,null,null,null,null,null,null,null,null,null,null,null,null,null,null,null,null,null,null,null,null,null,null,null,null,null,null,null,null,null,null,null,null,null,null,null,null,null,null,null,null,null,null,null,null,null,null,null,null,null,null,null,null,null,null,null,null,null,null,null,null,null,null,null,null,null,null,null,null,null,null,null,null,null,null,null,null,null,null,null,null,null,null,null,null,null,null,null,null,null,null,null,null,null,null,null,null,null,null,null,null,null,null,null,null,null,null,null,null,null,null,null,null,null,null,null,null,null,null,null,null,null,null,null,null,null,null,null,null,null,null,null,null,null,null,null,null,null,null,null,null,null,null,null,null,null,null,null,null,null,null,null,null,null,null,null,null,null,null,null,null,null,null,null,null,null,null,null,null,null,null,null,null,null,null,null,null,null,null,null,null,null,null,null,null,null,null,null,null,null,null,null,null,null,null,null,null,null,null,null,null,null,null,null,null,null,null,null,null,null,null,null,null,null,null,null,null,null,null,null,null,null,null,null,null,null,null,null,null,null,null,null,null,null,null,null,null,null,null,null,null,null,null,null,null,null,null,null,null,null,null,null,null,null,null,null,null,null,null,null,null,null,null,null,null,null,null,null,null,null,null,null,null,null,null,null,null,null,null,null,null,null,null,null,null,null,null,null,null,null,null,null,null,null,null,null,null,null,null,null,null,null,null,null,null,null,null,null,null,null,null,null,null,null,null,null,null,null,null,null,null,null,null,null,null,null,null,null,null,null,null,null,null,null,null,null,null,null,null,null,null,null,null,null,null,null,null,null,null,null,null,null,null,null,null,null,null,null,null,null,null,null,null,null,null,null,null,null,null,null,null,null,null,null,null,null,null,null,null,null,null,null,null,null,null,null,null,null,null,null,null,null,null,null,null,null,null,null,null,null,null,null,null,null,null,null,null,null,null,null,null,null,null,null,null,null,null,null,null,null,null,null,null,null,null,null,null,null,null,null,null,null,null,null,null,null,null,null,null,null,null,null,null,null,null,null,null,null,null,null,null,null,null,null,null,null,null,null,null,null,null,null,null,null,null,null,null,null,null,null,null,null,null,null,null,null,null,null,null,null,null,null,null,null,null,null,null,null,null,null,null,null,null,null,null,null,null,null,null,null,null,null,null,null,null,null,null,null,null,null,null,null,null,null,null,null,null,null,null,null,null,null,null,null,null,null,null,null,null,null,null,null,null,null,null,null,null,null,null,null,null,null,null,null,null,null,null,null,null,null,null,null,null,null,null,null,null,null,null,null,null,null,null,null,null,null,null,null,null,null,null,null,null,null,null,null,null,null,null,null,null,null,null,null,null,null,null,null,null,null,null,null,null,null,null,null,null,null,null,null,null,null,null,null,null,null,null,null,null,null,null,null,null,null,null,null,null,null,null,null,null,null,null,null,null,null,null,null,null,null,null,null,null,null,null,null,null,null,null,null,null,null,null,null,null,null,null,null,null,null,null,null,null,null,null,null,null,null,null,null,null,null,null,null,null,null,null,null,null,null,null,null,null,null,null,null,null,null,null,null,null,null,null,null,null,null,null,null,null,null,null,null,null,null,null,null,null,null,null,null,null,null,null,null,null,null,null,null,null,null,null,null,null,null,null,null,null,null,null,null,null,null,null,null,null,null,null,null,null,null,null,null,null,null,null,null,null,null,null,null,null,null,null,null,null,null,null,null,null,null,null,null,null,null,null,null,null,null,null,null,null,null,null,null,null,null,null,null,null,null,null,null,null,null,null,null,null,null,null,null,null,null,null,null,null,null,null,null,null,null,null,null,null,null,null,null,null,null,null,null,null,null,null,null,null,null,null,null,null,null,null,null,null,null,null,null,null,null,null,null,null,null,null,null,null,null,null,null,null,null,null,null,null,null,null,null,null,null,null,null,null,null,null,null,null,null,null,null,null,null,null,null,null,null,null,null,null,null,null,null,null,null,null,null,null,null,null,null,null,null,null,null,null,null,null,null,null,null,null,null,null,null,null,null,null,null,null,null,null,null,null,null,null,null,null,null,null,null,null,null,null,null,null,null,null,null,null,null,null,null,null,null,null,null,null,null,null,null,null,null,null,null,null,null,null,null,null,null,null,null,null,null,null,null,null,null,null,null,null,null,null,null,null,null,null,null,null,null,null,null,null,null,null,null,null,null,null,null,null,null,null,null,null,null,null,null,null,null,null,null,null,null,null,null,null,null,null,null,null,null,null,null,null,null,null,null,null,null,null,null,null,null,null,null,null,null,null,null,null,null,null,null,null,null,null,null,null,null,null,null,null,null,null,null,null,null,null,null,null,null,null,null,null,null,null,null,null,null,null,null,null,null,null,null,null,null,null,null,null,null,null,null,null,null,null,null,null,null,null,null,null,null,null,null,null,null,null,null,null,null,null,null,null,null,null,null,null,null,null,null,null,null,null,null,null,null,null,null,null,null,null,null,null,null,null,null,null,null,null,null,null,null,null,null,null,null,null,null,null,null,null,null,null,null,null,null,null,null,null,null,null,null,null,null,null,null,null,null,null,null,null,null,null,null,null,null,null,null,null,null,null,null,null,null,null,null,null,null,null,null,null,null,null,null,null,null,null,null,null,null,null,null,null,null,null,null,null,null,null,null,null,null,null,null,null,null,null,null,null,null,null,null,null,null,null,null,null,null,null,null,null,null,null,null,null,null,null,null,null,null,null,null,null,null,null,null,null,null,null,null,null,null,null,null,null,null,null,null,null,null,null,null,null,null,null,null,null,null,null,null,null,null,null,null,null,null,null,null,null,null,null,null,null,null,null,null,null,null,null,null,null,null,null,null,null,null,null,null,null,null,null,null,null,null,null,null,null,null,null,null,null,null,null,null,null,null,null,null,null,null,null,null,null,null,null,null,null,null,null,null,null,null,null,null,null,null,null,null,null,null,null,null,null,null,null,null,null,null,null,null,null,null,null,null,null,null,null,null,null,null,null,null,null,null,null,null,null,null,null,null,null,null,null,null,null,null,null,null,null,null,null,null,null,null,null,null,null,null,null,null,null,null,null,null,null,null,null,null,null,null,null,null,null,null,null,null,null,null,null,null,null,null,null,null,null,null,null,null,null,null,null,null,null,null,null,null,null,null,null,null,null,null,null,null,null,null,null,null,null,null,null,null,null,null,null,null,null,null,null,null,null,null,null,null,null,null,null,null,null,null,null,null,null,null,null,null,null,null,null,null,null,null,null,null,null,null,null,null,null,null,null,null,null,null,null,null,null,null,null,null,null,null,null,null,null,null,null,null,null,null,null,null,null,null,null,null,null,null,null,null,null,null,null,null,null,null,null,null,null,null,null,null,null,null,null,null,null,null,null,null,null,null,null,null,null,null,null,null,null,null,null,null,null,null,null,null,null,null,null,null,null,null,null,null,null,null,null,null,null,null,null,null,null,null,null,null,null,null,null,null,null,null,null,null,null,null,null,null,null,null,null,null,null,null,null,null,null,null,null,null,null,null,null,null,null,null,null,null,null,null,null,null,null,null,null,null,null,null,null,null,null,null,null,null,null,null,null,null,null,null,null,null,null,null,null,null,null,null,null,null,null,null,null,null,null,null,null,null,null,null,null,null,null,null,null,null,null,null,null,null,null,null,null,null,null,null,null,null,null,null,null,null,null,null,null,null,null,null,null,null,null,null,null,null,null,null,null,null,null,null,null,null,null,null,null,null,null,null,null,null,null,null,null,null,null,null,null,null,null,null,null,null,null,null,null,null,null,null,null,null,null,null,null,null,null,null,null,null,null,null,null,null,null,null,null,null,null,null,null,null,null,null,null,null,null,null,null,null,null,null,null,null,null,null,null,null,null,null,null,null,null,null,null,null,null,null,null,null,null,null,null,null,null,null,null,null,null,null,null,null,null,null,null,null,null,null,null,null,null,null,null,null,null,null,null,null,null,null,null,null,null,null,null,null,null,null,null,null,null,null,null,null,null,null,null,null,null,null,null,null,null,null,null,null,null,null,null,null,null,null,null,null,null,null,null,null,null,null,null,null,null,null,null,null,null,null,null,null,null,null,null,null,null,null,null,null,null,null,null,null,null,null,null,null,null,null,null,null,null,null,null,null,null,null,null,null,null,null,null,null,null,null,null,null,null,null,null,null,null,null,null,null,null,null,null,null,null,null,null,null,null,null,null,null,null,null,null,null,null,null,null,null,null,null,null,null,null,null,null,null,null,null,null,null,null,null,null,null,null,null,null,null,null,null,null,null,null,null,null,null,null,null,null,null,null,null,null,null,null,null,null,null,null,null,null,null,null,null,null,null,null,null,null,null,null,null,null,null,null,null,null,null,null,null,null,null,null,null,null,null,null,null,null,null,null,null,null,null,null,null,null,null,null,null,null,null,null,null,null,null,null,null,null,null,null,null,null,null,null,null,null,null,null,null,null,null,null,null,null,null,null,null,null,null,null,null,null,null,null,null,null,null,null,null,null,null,null,null,null,null,null,null,null,null,null,null,null,null,null,null,null,null,null,null,null,null,null,null,null,null,null,null,null,null,null,null,null,null,null,null,null,null,null,null,null,null,null,null,null,null,null,null,null,null,null,null,null,null,null,null,null,null,null,null,null,null,null,null,null,null,null,null,null,null,null,null,null,null,null,null,null,null,null,null,null,null,null,null,null,null,null,null,null,null,null,null,null,null,null,null,null,null,null,null,null,null,null,null,null,null,null,null,null,null,null,null,null,null,null,null,null,null,null,null,null,null,null,null,null,null,null,null,null,null,null,null,null,null,null,null,null,null,null,null,null,null,null,null,null,null,null,null,null,null,null,null,null,null,null,null,null,null,null,null,null,null,null,null,null,null,null,null,null,null,null,null,null,null,null,null,null,null,null,null,null,null,null,null,null,null,null,null,null,null,null,null,null,null,null,null,null,null,null,null,null,null,null,null,null,null,null,null,null,null,null,null,null,null,null,null,null,null,null,null,null,null,null,null,null,null,null,null,null,null,null,null,null,null,null,null,null,null,null,null,null,null,null,null,null,null,null,null,null,null,null,null,null,null,null,null,null,null,null,null,null,null,null,null,null,null,null,null,null,null,null,null,null,null,null,null,null,null,null,null,null,null,null,null,null,null,null,null,null,null,null,null,null,null,null,null,null,null,null,null,null,null,null,null,null,null,null,null,null,null,null,null,null,null,null,null,null,null,null,null,null,null,null,null,null,null,null,null,null,null,null,null,null,null,null,null,null,null,null,null,null,null,null,null,null,null,null,null,null,null,null,null,null,null,null,null,null,null,null,null,null,null,null,null,null,null,null,null,null,null,null,null,null,null,null,null,null,null,null,null,null,null,null,null,null,null,null,null,null,null,null,null,null,null,null,null,null,null,null,null,null,null,null,null,null,null,null,null,null,null,null,null,null,null,null,null,null,null,null,null,null,null,null,null,null,null,null,null,null,null,null,null,null,null,null,null,null,null,null,null,null,null,null,null,null,null,null,null,null,null,null,null,null,null,null,null,null,null,null,null,null,null,null,null,null,null,null,null,null,null,null,null,null,null,null,null,null,null,null,null,null,null,null,null,null,null,null,null,null,null,null,null,null,null,null,null,null,null,null,null,null,null,null,null,null,null,null,null,null,null,null,null,null,null,null,null,null,null,null,null,null,null,null,null,null,null,null,null,null,null,null,null,null,null,null,null,null,null,null,null,null,null,null,null,null,null,null,null,null,null,null,null,null,null,null,null,null,null,null,null,null,null,null,null,null,null,null,null,null,null,null,null,null,null,null,null,null,null,null,null,null,null,null,null,null,null,null,null,null,null,null,null,null,null,null,null,null,null,null,null,null,null,null,null,null,null,null,null,null,null,null,null,null,null,null,null,null,null,null,null,null,null,null,null,null,null,null,null,null,null,null,null,null,null,null,null,null,null,null,null,null,null,null,null,null,null,null,null,null,null,null,null,null,null,null,null,null,null,null,null,null,null,null,null,null,null,null,null,null,null,null,null,null,null,null,null,null,null,null,null,null,null,null,null,null,null,null,null,null,null,null,null,null,null,null,null,null,null,null,null,null,null,null,null,null,null,null,null,null,null,null,null,null,null,null,null,null,null,null,null,null,null,null,null,null,null,null,null,null,null,null,null,null,null,null,null,null,null,null,null,null,null,null,null,null,null,null,null,null,null,null,null,null,null,null,null,null,null,null,null,null,null,null,null,null,null,null,null,null,null,null,null,null,null,null,null,null,null,null,null,null,null,null,null,null,null,null,null,null,null,null,null,null,null,null,null,null,null,null,null,null,null,null,null,null,null,null,null,null,null,null,null,null,null,null,null,null,null,null,null,null,null,null,null,null,null,null,null,null,null,null,null,null,null,null,null,null,null,null,null,null,null,null,null,null,null,null,null,null,null,null,null,null,null,null,null,null,null,null,null,null,null,null,null,null,null,null,null,null,null,null,null,null,null,null,null,null,null,null,null,null,null,null,null,null,null,null,null,null,null,null,null,null,null,null,null,null,null,null,null,null,null,null,null,null,null,null,null,null,null,null,null,null,null,null,null,null,null,null,null,null,null,null,null,null,null,null,null,null,null,null,null,null,null,null,null,null,null,null,null,null,null,null,null,null,null,null,null,null,null,null,null,null,null,null,null,null,null,null,null,null,null,null,null,null,null,null,null,null,null,null,null,null,null,null,null,null,null,null,null,null,null,null,null,null,null,null,null,null,null,null,null,null,null,null,null,null,null,null,null,null,null,null,null,null,null,"Detectors"]
[null,"For information on how to use the tool please view our “How to Video” or take part in our “online e-learning session",null,null,null,null,null,null,null,null,null,null,null,null,null,null,null,null,null,null,null,"D frequency","Czech"]
[null,null,null,null,null,null,null,null,null,null,null,null,null,null,null,null,null,null,null,null,null,"A frequency","Estonia"]
[null,null,"How many inputs do you require?",null,null,null,null,20,null,"Required magnetic contacts?  (built in)?    ",null,0,"   Required 12M PIR?",null,null,0,null,null,null,null,null,"E Frequncy","Liechtenstein"]
[null,null,null,null,null,null,null,null,null,null,null,null,null,null,null,null,null,null,null,null,null,null,"Luxembourg"]
[null,null,"How many outputs do you require?",null,null,null,null,0,null,"Required magnetic contacts?",null,0,"   Required 12M PIR Dual?",null,null,0,null,null,null,null,null,null,"Slovakia"]
[null,null,null,null,null,null,null,null,null,null,null,null,null,null,null,null,null,null,null,null,null,null,"Switzerland"]
[null,null,"How many keypads do you require?",null,null,null,null,1,null,"Required flood detectors?",null,0,"   Required 18M PIR ?",null,null,0,null,null,null,null,null,null,"Turkey"]
[null,null,null,null,null,null,null,null,null,null,null,null,null,null,null,null,null,null,null,null,null,null,"Belgium"]
[null,null,"How many doors do you require?",null,null,null,null,0,null," Requirement of seismic sensors?",null,0,"   Required 18M PIR with Dual?",null,null,0,null,null,null,null,null,null,"Bulgaria"]
[null,null,null,null,null,null,null,null,null,null,null,null,null,null,null,null,null,null,null,null,null,null,"Cyprus"]
[null,null,"How many users do you require?",null,null,null,null,40,null," Required acoustic glass break detectors?",null,0,"  Select region options for detectors for dual",null,null,null,null,null,null,null,null,null,"Denmark"]
[null,null,null,null,null,null,null,null,null,null,null,null,null,null,null,null,null,null,null,null,null,null,"Finland"]
[null,null,"How many cards do you require?",null,null,null,null,0,null," Required passive glass break detectors?",null,0,null,null,null,null,null,null,null,null,null,null,"Greece"]
[null,null,null,null,null,null,null,null,null,null,null,null,null,null,null,null,null,null,null,null,null,null,"Iceland"]
[null,null,"How many areas do you require?",null,null,null,null,1,null," Required Vibration sensors?",null,0," Door Contacts",null,null,null,null,null,null,null,null,null,"Italy"]
[null,null,null,null,null,null,null,null,null," Required indoor sirens?",null,0," Required Door magnetic contacts?  (built in)?    ",null,null,0,null,null,null,null,null,null,"Latvia"]
[null,null,"Alarm cable distance",null,null,null,null,0,"m"," Required outdoor sirens?",null,0," Required Door magnetic contacts?",null,null,0,null,null,null,null,null,null,"Lithuania"]
[null,null,null,null,null,null,null,null,null,null,null,null,null,null,null,null,null,null,null,null,null,null,"Malta"]
[null,null,null,null,null,null,null,null,null,null,null,null,null,null,null,null,null,null,null,null,null,null,"Netherland"]
[null,null,null,null,null,null,null,null,null,null,null,null,null,null,null,null,null,null,null,null,null,null,"Norway"]
[null,null,null,null,null,null,null,null,null,null,null,null,null,null,null,null,null,null,null,null,null,null,"Poland"]
[null,"Project name",null,null,"-",null,null,null,"(OPTIONAL)",null,null,null,null,null,null,null,null,null,null,null,null,null,"Portugal"]
[null,null,null,null,null,null,null,null,null,null,null,null,null,null,null,null,null,null,null,null,null,null,"Romania"]
[null,"Calculation date",null,null,"-",null,null,null,"(OPTIONAL)",null,null,null,null,null,null,null,null,null,null,null,null,null,"Slovenia"]
[null,null,null,null,null,null,null,null,null,null,null,null,null,null,null,null,null,null,null,null,null,null,"Spain"]
[null,"Standby time in hours related to required security grade",null,null,16,"h","E.G. Vds C \"60\", EN Grade 2 \"32\" , EN Grade 3 \"60\", ...)",null,null,null,null,null,null,null,null,null,null,null,null,null,null,null,"Sweden"]
[null,null,null,null,null,null,null,null,null,null,null,null,null,null,null,null,null,null,null,null,null,null,"Bosnia & Herzegovina"]
[null,null,null,null,null,null,null,null,null,null,null,null,null,null,null,null,null,null,null,null,null,null,"Georgia"]
[null,"Min. required rest capacity in % of the backup battery  (if applicable)",null,null,0.01,"%","E.G. Vds \"20%\", EN Grade 2 \"XX%\" , EN Grade 3 \"XX%\", ...)",null,null,null,null,null,null,null,null,null,null,null,null,null,null,null,"Croatia"]
[null,null,null,null,null,null,null,null,null,null,null,null,null,null,null,null,null,null,null,null,null,null,"Macedonia"]
[null,null,null,null,null,null,null,null,null,null,null,null,null,null,null,null,null,null,null,null,null,null,"Montenegro"]
[null,"Additional alarm current, if main fails and panel runs on battery. \nNote:This is in addition to any devices added on power calculation page  (if applicable)",null,null,0,"Ah","E.G. Vds \"0,5Ah\", EN Grade 2 \"XXAh\" , EN Grade 3 \"XXAh\", ...)",null,null,null,null,null,null,null,null,null,null,null,null,null,null,null,"Russia"]
[null,null,null,null,null,null,null,null,null,null,null,null,null,null,null,null,null,null,null,null,null,null,"Serbia"]
[null,null,null,null,null,null,null,null,null,null,null,null,null,null,null,null,null,null,null,null,null,null,"Ukraine"]
[null,null,null,null,null,null,null,null,null,null,null,null,null,null,null,null,null,null,null,null,null,null,"France"]
[null,null,null,null,null,null,null,null,null,null,null,null,null,null,null,null,null,null,null,null,null,null,"Hungary"]
[null,"Description:",null,null,null,null,null,null,null,null,null,null,null,null,null,null,null,null,null,null,null,null,"Ireland"]
[null,"Please ensure to activate the Macro functionally, otherwise the calculation will \nnot work correctly.",null,null,null,null,null,null,null,null,null,null,null,null,null,null,null,null,null,null,null,null,"UK"]
[null,"The \"SPC Calculator\" is used to get a rough overview about the power consumption based on the given standby time values and selected products."]
[]
[]
[null,"Comments"]
[null,"Attention: this calculation does not consider the voltage drop in the field installation. In real installation environments, especially with long distance cabling, additional power supply's might be needed."]
[]
[]
[null,"Power consumption: \nAs soon as the power consumption of the field installation exceeds the available power of the control panel or PSU,  the cell indication will become red. \n"]
[]
[]
[]
[]
[]
[]
[]
[]
[null,"Feedback"]
[null,"If you have any comments on this tool or wish to request an improvement please click here"]
[]
[null,"If you require support, training or information please contact Vanderbilt here"]
[]
[]
[null,{"$f":"TODAY()","v":"2018-09-06"}]
[]
[null,"Release Notes"]
[null,"=========================================================================="]
[null,"(C) 2017 Vanderbilt All Rights Reserved"]
[null,"=========================================================================="]
[null,"Released: V2.0 27/04/2018"]
[null,"=========================================================================="]
[]
[]
[]
[]
[]
[]
[]
[]
[]
[]
[]
[]
[]
[]
[null,null,null,0,0,0,null,null,1,null,1,null,0,1,null,null,null,null,null,null,null,null,0,1]

{"sheet":"Power calculation","index":2,"n_rows":173,"n_cols":17,"rows_kept":173,"cut":false,"hidden":false,"merged":[[164,1,164,2],[164,5,164,8],[153,1,159,1],[162,1,162,2],[162,5,162,8],[163,1,163,2],[163,5,163,8],[133,1,148,1],[133,6,148,6],[133,7,148,7],[150,1,151,1],[150,6,151,6],[150,7,151,7],[109,1,112,1],[109,6,110,6],[109,7,110,7],[123,1,124,1],[114,6,115,6],[5,9,5,11],[5,3,5,5],[8,1,17,1],[19,1,23,1],[25,1,27,1],[56,6,69,6],[56,7,69,7],[71,7,74,7],[19,7,23,7],[25,7,27,7],[36,7,47,7],[29,7,34,7],[71,6,74,6],[76,7,89,7],[165,6,166,10],[123,6,124,6],[91,7,92,7],[100,6,105,6],[76,6,89,6],[100,7,105,7],[114,7,115,7],[123,7,124,7],[153,6,159,6],[153,7,159,7],[0,1,0,2],[1,1,3,4],[49,1,54,1],[19,6,23,6],[25,6,27,6],[29,6,34,6],[29,1,34,1],[36,6,47,6],[168,4,168,8],[36,1,45,1],[46,1,47,1],[56,1,65,1],[66,1,69,1],[91,1,96,1],[97,1,98,1],[106,1,107,1],[114,1,121,1],[100,1,105,1],[76,1,89,1],[71,1,74,1],[126,1,131,1],[126,6,131,6],[126,7,131,7],[91,6,92,6]]}
[null,"Remark:"]
[null,"Please enter the quantity and the power consumption(mA) of the products in the blue marked fields."]
[]
[]
[]
[null,null,null,"Power Consumption mA",null,null,null,null,null,"Power Consumption mA"]
[null,"Product group","SPC Product","Min./pcs.","Max./pcs.","Average/pcs.","available AUX mA/pcs.","battery space","Quantity","Min./overall","Max./overall","Average/overall","Available current mA","Available battery capacity","Notes","Your price","Part code"]
[]
[null,"Panel","SPC4221  7Ah/xxh  no IP/G2 cabinet with plastic lid",170,200,{"$f":"AVERAGE(D9,E9)","v":185},{"$f":"750","v":750},7,0,{"$f":"D9*I9","v":0},{"$f":"E9*I9","v":0},{"$f":"AVERAGE(J9,K9)","v":0},{"$f":"G9*I9","v":0},{"$f":"I9*H9","v":0},null,null,"V54541-C113-A100"]
[null,null,"SPC4320  7Ah/xxh  IP/G2 cabinet with plastic lid",170,200,{"$f":"AVERAGE(D10,E10)","v":185},{"$f":"750","v":750},7,0,{"$f":"D10*I10","v":0},{"$f":"E10*I10","v":0},{"$f":"AVERAGE(J10,K10)","v":0},{"$f":"G10*I10","v":0},{"$f":"I10*H10","v":0},null,null,"V54541-C114-A100"]
[null,null,"SPC4320  7Ah/xxh  IP/G2 metal cabinet",170,200,{"$f":"AVERAGE(D11,E11)","v":185},{"$f":"750","v":750},7,0,0,0,0,0,0,null,null,"V54541-C109-B100"]
[null,null,"SPC5320  7Ah/xxh  IP/G2 metal cabinet",170,200,185,{"$f":"750","v":750},7,0,0,0,0,0,0,null,null,"V54541-C106-B100"]
[null,null,"SPC5330  17Ah/xxh  IP/G3 metal cabinet",170,200,185,{"$f":"750","v":750},17,0,0,0,0,0,0,null,null,"V54541-C107-B100"]
[null,null,"SPC6330  17Ah/xxh  IP/G3 metal cabinet",170,200,185,{"$f":"750","v":750},17,0,0,0,0,0,0,null,null,"V54541-C105-C100"]
[null,null,"SPC5350 1x26Ah/xxh  IP/G5 metal cabinet",350,415,382.5,{"$f":"2200","v":2200},26,0,0,0,0,{"$f":"G15*I15","v":0},0,null,null,"V54541-C117-A100"]
[null,null,"SPC5350 2x26Ah/xxh  IP/G5 metal cabinet",350,415,382.5,{"$f":"2200","v":2200},52,0,0,0,0,{"$f":"G16*I16","v":0},0,null,null,"V54541-C117-A100"]
[null,null,"SPC6350 1x26Ah/xxh  IP/G5 metal cabinet",350,415,382.5,{"$f":"2200","v":2200},26,0,0,0,0,{"$f":"G17*I17","v":0},0,null,null,"V54541-C118-A100"]
[null,null,"SPC6350 2x26Ah/xxh  IP/G5 metal cabinet",350,415,382.5,{"$f":"2200","v":2200},52,0,0,0,0,{"$f":"G18*I18","v":0},0,null,null,"V54541-C118-A100"]
[null,null,null,null,null,null,null,null,0]
[null,"SiWay module","SPCW110  SiWay RF Kit w. ext. Antenna",10,10,10,null,null,0,{"$f":"D20*I20","v":0},{"$f":"E20*I20","v":0},{"$f":"AVERAGE(J20,K20)","v":0},null,null,null,null,"V54554-B101-A100"]
[null,null,"SPCW111  SiWay RF Kit w. int. Antenna",10,10,10,null,null,0,{"$f":"D21*I21","v":0},{"$f":"E21*I21","v":0},{"$f":"AVERAGE(J21,K21)","v":0},null,null,null,null,"V54554-B105-A100"]
[null,null,"SPCW112  SiWay RF Kit for SPCK42x",10,10,10,null,null,0,0,0,0,null,null,null,null,"V54554-B103-B100"]
[null,null,"SPCW114  SiWay RF Kit for SPCK52x",10,10,10,null,null,0,0,0,0,null,null,null,null,"V54554-B104-A100"]
[null,null,"SPCW130  SiWay RF Expander ",60,60,60,null,null,0,0,0,0,null,null,null,null,"V54554-F101-B100"]
[null,null,null,null,null,null,null,null,0]
[null,"Communication module","SPCN110  PSTN module",25,35,30,null,null,0,0,0,0,null,null,null,null,"V54550-B101-A100"]
[null,null,"SPCN320.000 GSM Module incl. antenna",130,130,130,null,null,0,0,0,0,null,null,null,null,"V54550-B102-A200"]
[null,null,"SPCN910  communication interface module",40,44,42,null,null,0,0,0,0,null,null,null,null,"V54550-B104-A100"]
[null,null,null,null,null,null,null,null,0]
[null,"User operation module","SPCK420  LCD Keypad ",45,90,{"$f":"AVERAGE(D30,E30)","v":67.5},null,null,0,0,0,0,null,null,null,null,"V54543-F101-A100"]
[null,null,"SPCK421  LCD Keypad with Reader ",80,110,{"$f":"AVERAGE(D31,E31)","v":95},null,null,0,0,{"$f":"E31*I31","v":0},0,null,null,null,null,"V54543-F102-A100"]
[null,null,"SPCK520 LCD Compact keypad",55,210,{"$f":"AVERAGE(D32,E32)","v":132.5},null,null,0,0,{"$f":"E32*I32","v":0},0,null,null,null,null,"V54543-F115-A100"]
[null,null,"SPCK521 LCD Compact keypad with Mifare/125KHz reader and Audio",95,210,152.5,null,null,0,0,0,0,null,null,null,null,"V54543-F116-A100"]
[null,null,"SPCK620 Comfort Keypad",55,155,{"$f":"AVERAGE(D34,E34)","v":105},null,null,0,0,0,0,null,null,null,null,"V54543-F110-A100"]
[null,null,"SPCK623 Comfort Keypad (Audio/Card)",110,230,{"$f":"AVERAGE(D35,E35)","v":170},null,null,0,0,0,0,null,null,null,null,"V54543-F111-A100"]
[null,null,null,null,null,null,null,null,0]
[null,"Expander module","SPCE652  Expander (8 Inputs / 2 Outputs) ",40,80,{"$f":"AVERAGE(D37,E37)","v":60},null,null,0,0,0,0,null,null,"all relays activated",null,"V54542-F106-A100"]
[null,null,"SPCE452  Expander (8 Outputs ) ",40,190,115,null,null,0,0,0,0,null,null,"all relays activated",null,"V54542-F107-A100"]
[null,null,"SPCA210  2-Door Expander ",45,80,62.5,null,null,0,0,0,0,null,null,null,null,"V54547-A101-A100"]
[null,null,"SPCE120 Indication Expander",30,70,50,null,null,0,0,0,0,null,null,null,null,"V54542-F105-A100"]
[null,null,"SPCE110 Key switch Expander",30,50,40,null,null,0,0,0,0,null,null,null,null,"V54542-F104-A100"]
[null,null,"SPCV310 Audio station (loudspeaker & Microphone) with housing",1,7,4,null,null,0,0,0,0,null,null,null,null,"V54542-F120-A100"]
[null,null,"SPCV320 Audio I/O Expander w. 4 inputs/ 1 open collector output",40,510,275,null,null,0,0,0,0,null,null,"without additional audio expanders"]
[null,null,"SPCV321 Audio Input Expander w. 4 inputs / 1 line out",40,510,275,null,null,0,0,0,0,null,null,"without additional audio expanders"]
[null,null,"SPCV340 Audio I/O Expander w. 4 inputs / 1 open collector output",60,75,67.5,null,null,0,0,0,0,null,null,"without additional audio expanders",null,"V54542-F108-B100"]
[null,null,"SPCV341 Audio Input Expander w. 4 inputs / 1 line out",60,75,67.5,null,null,0,0,0,0,null,null,"without additional audio expanders",null,"V54542-F109-B100"]
[null,null,"SPCV410 Audio Expander w. 1 input (slave module)",1,7,4,null,null,0,0,0,0,null,null,"without additional audio expanders and motion detector / 1 input is reserved for a 12m MAGIC Motion Detector",null,"V54542-F119-A100"]
[null,null,"SPCV440 Audio Expander w. 4 inputs/ 1 open collector output ",60,75,67.5,null,null,0,0,0,0,null,null,"without additional audio expanders and motion detector",null,"V54542-F118-A100"]
[null,null,null,null,null,null,null,null,0]
[null,"PSU","SPCP332 PSU w. I/O Exp. SPCE652 - G2 - 7Ah",77,117,{"$f":"AVERAGE(D50,E50)","v":97},{"$f":"1500","v":1500},7,0,0,0,0,{"$f":"G50*I50","v":0},{"$f":"I50*H50","v":0},null,null,"V54545-C102-A100"]
[null,null,"SPCP333 PSU w. I/O Exp. SPCE652 - G3 - 17Ah",77,117,97,{"$f":"1500","v":1500},17,0,0,0,0,{"$f":"G51*I51","v":0},{"$f":"I51*H51","v":0},null,null,"V54545-C101-A100"]
[null,null,"SPCP355 PSU w. I/O Exp. SPCE652 -  G5 - 1x26Ah",195,245,220,{"$f":"2360","v":2360},26,0,0,0,0,0,0,null,null,"V54545-C105-A100"]
[null,null,"SPCP355 PSU w. I/O Exp. SPCE652 -  G5 - 2x26Ah",195,245,220,{"$f":"2360","v":2360},52,0,0,0,0,0,0,null,null,"V54545-C105-A100"]
[null,null,"SPCP432 PSU w. door Exp. SPCA210 - G2 - 7Ah",82,124,103,{"$f":"1500","v":1500},7,0,0,0,0,0,0,null,null,"V54545-C103-A100"]
[null,null,"SPCP433 PSU w. door Exp. SPCA210 - G3 - 17Ah",82,124,103,{"$f":"1500","v":1500},17,0,0,0,0,0,0,null,null,"V54545-C104-A100"]
[null,null,null,null,null,null,null,null,0]
[null,"E-BUS Gateway + Expander + Keypads + Detectors","SPCG310 E-BUS Gateway for SPC",40,40,{"$f":"AVERAGE(D57,E57)","v":40},null,null,0,{"$f":"D57*I57","v":0},{"$f":"E57*I57","v":0},{"$f":"AVERAGE(J57,K57)","v":0},null,null,null,null,"V54554-A101-A100"]
[null,null,"SAT12/SMT12",7,15,11,null,null,0,0,0,0]
[null,null,"SMT22",4,20,12,null,null,0,0,0,0]
[null,null,"SAT24/SMT24",4,25,14.5,null,null,0,0,0,0]
[null,null,"SMT44",42,66,54,null,null,0,0,0,0]
[null,null,"SAK41",13,73,43,null,null,0,0,0,0]
[null,null,"SAK51",13,73,43,null,null,0,0,0,0]
[null,null,"PDM-E-I12",3.7,5.7,4.7,null,null,0,0,0,0,null,null,null,null,"V54530-F115-A100"]
[null,null,"PDM-E-I18T",4.2,6.2,5.2,null,null,0,0,0,0,null,null,null,null,"V54530-F116-A100"]
[null,null,"PDM-E-IXD12",4.5,6.5,5.5,null,null,0,0,0,0,null,null,null,null,"V54531-F130-A100"]
[null,null,"PDM-E-IXD18T",5.0999999999999996,7.1,6.1,null,null,0,0,0,0,null,null,null,null,"V54531-F131-A100"]
[null,null,"UP370MD E-BUS",20,52,36,null,null,0,0,0,0,null,null,null,null,"VBPZ: 5198210001"]
[null,null,"UP370T E-BUS",22,54,38,null,null,0,0,0,0,null,null,null,null,"VBPZ: 5199990001"]
[null,null,"DIVERS",null,null,{"$error":"#DIV/0!"},null,null,0,0,0,0]
[null,null,null,null,null,null,null,null,0]
[null,"MAGIC PIR Detectors","PDM-I12 Passiv Infrared Detector 12m detection range",2.5,4.7,{"$f":"AVERAGE(D72,E72)","v":3.6},null,null,0,{"$f":"D72*I72","v":0},{"$f":"E72*I72","v":0},{"$f":"AVERAGE(J72,K72)","v":0},null,null,null,null,"V54530-F114-A100"]
[null,null,"PDM-I12T Passiv Infrared Detector 12m detection range with Antimask",6.3,10.5,8.4,null,null,0,0,0,0,null,null,null,null,"V54530-F105-A100"]
[null,null,"PDM-I18 Passiv Infrared Detector 18m detection range",2.5,4.7,3.6,null,null,0,0,0,0,null,null,null,null,"V54530-F106-A100"]
[null,null,"PDM-I18T Passiv Infrared Detector 18m detection range with Antimask",6.3,10.5,8.4,null,null,0,0,0,0,null,null,null,null,"V54530-F107-A100"]
[null,null,null,null,null,null,null,null,0]
[null,"MAGIC Dual Detectors","PDM-IXD12 Dual Detector (PIR/MW) 12m detection range",4.8,9,{"$f":"AVERAGE(D77,E77)","v":6.9},null,null,0,{"$f":"D77*I77","v":0},{"$f":"E77*I77","v":0},{"$f":"AVERAGE(J77,K77)","v":0},null,null,null,null,"V54531-F124-A100"]
[null,null,"PDM-IXD12T Dual Detector (PIR/MW) 12m detection range with Antimask",6.3,10.5,8.4,null,null,0,0,0,0,null,null,null,null,"V54531-F115-A100"]
[null,null,"PDM-IXD18 Dual Detector (PIR/MW) 18m detection range",4.8,9,6.9,null,null,0,0,0,0,null,null,null,null,"V54531-F118-A100"]
[null,null,"PDM-IXD18T Dual Detector (PIR/MW) 18m detection range with Antimask",6.3,10.5,8.4,null,null,0,0,0,0,null,null,null,null,"V54531-F121-A100"]
[null,null,"PDM-IXA12 Dual Detector (PIR/MW) 12m detection range",4.8,9,6.9,null,null,0,0,0,0,null,null,null,null,"V54531-F113-A100"]
[null,null,"PDM-IXA12T Dual Detector (PIR/MW) 12m detection range with Antimask",6.3,10.5,8.4,null,null,0,0,0,0,null,null,null,null,"V54531-F116-A100"]
[null,null,"PDM-IXA18 Dual Detector (PIR/MW) 18m detection range",4.8,9,6.9,null,null,0,0,0,0,null,null,null,null,"V54531-F119-A100"]
[null,null,"PDM-IXA18T Dual Detector (PIR/MW) 18m detection range with Antimask",6.3,10.5,8.4,null,null,0,0,0,0,null,null,null,null,"V54531-F122-A100"]
[null,null,"PDM-IXE12 Dual Detector (PIR/MW) 12m detection range",4.8,9,6.9,null,null,0,0,0,0,null,null,null,null,"V54531-F114-A100"]
[null,null,"PDM-IXE12T Dual Detector (PIR/MW) 12m detection range with Antimask",6.3,10.5,8.4,null,null,0,0,0,0,null,null,null,null,"V54531-F117-A100"]
[null,null,"PDM-IXE18 Dual Detector (PIR/MW) 18m detection range",4.8,9,6.9,null,null,0,0,0,0,null,null,null,null,"V54531-F120-A100"]
[null,null,"PDM-IXE18T Dual Detector (PIR/MW) 18m detection range with Antimask",6.3,10.5,8.4,null,null,0,0,0,0,null,null,null,null,"V54531-F123-A100"]
[null,null,"UP370MD Dual Detector (PIR/US) 10m detection range with Alarm storage",16,32,24,null,null,0,0,0,0]
[null,null,"UP370T Dual Detector (PIR/US) 10m detection range with Antimask",18,34,26,null,null,0,0,0,0]
[null,null,null,null,null,null,null,null,0]
[null,"Card readers without keypad","HD500-Cotag (card reader without keypad)",37,37,{"$f":"AVERAGE(D92,E92)","v":37},null,null,0,{"$f":"D92*I92","v":0},{"$f":"E92*I92","v":0},{"$f":"AVERAGE(J92,K92)","v":0},null,null,null,null,"V24246-F4703-A1"]
[null,null,"HD500-EM (card reader without keypad)",20,20,20,null,null,0,0,0,0]
[null,null,"HMD TKSV-SES-S / CDA2",65,120,80,null,null,0,0,0,0,null,null,null,null,"N54547-Z101-A500"]
[null,null,"HMD TKWA AES / CDA2",65,120,80,null,null,0,0,0,0,null,null,null,null,"N54547-Z101-A400"]
[null,null,"HMD LWA-AES / CDA2",65,120,80,null,null,0,0,0,0,null,null,null,null,"N54547-Z101-A300"]
[null,null,"VR10S-MF (Mifare card reader)",43,158,65,null,null,0,0,0,0,null,null,null,null,"V54504-F101-A100"]
[null,null,"VR20M-MF Mifare card readerstandard",50,150,70,null,null,0,0,0,0,null,null,null,null,"V54504-F111-A100\n"]
[null,null,"N54547-B105-A100      VR reader interface",5,5,5,null,null,0,0,0,0,null,null,null,null,"N54547-B105-A100       "]
[null,null,null,null,null,null,null,null,0]
[null,"Card readers with keypad","VR50M-MF Mifare card reader standard with keypad",50,150,70,null,null,0,{"$f":"D101*I101","v":0},{"$f":"E101*I101","v":0},{"$f":"AVERAGE(J101,K101)","v":0},null,null,null,null,"V54504-F112-A100"]
[null,null,"AR6182-MX (card reader with keypad)",145,145,{"$f":"AVERAGE(D102,E102)","v":145},null,null,0,0,0,0]
[null,null,"PP500-EM (card reader with keypad)",30,30,30,null,null,0,0,0,0,null,null,null,null,"V54501-F1-A1"]
[null,null,"HFS-TKWA-AES/CDA2  (card reader with keypad- color silver)",6,22,14,null,null,0,0,0,0]
[null,null,"HFS-TKWA-APW/CDA2 (card reader with keypad- color white)",6,22,14,null,null,0,0,0,0]
[null,null,"HFS-KLS-SMT/CDA2 (card reader with keypad) Siedle vario 611",6,22,14,null,null,0,0,0,0]
[null,null,"VR40S-MF (Mifare card reader with keyboard and display)",80,130,110,null,null,0,0,0,0,null,null,null,null,"V54504-F102-A100"]
[null,null,"N54547-B105-A100      VR reader interface",5,5,5,null,null,0,0,0,0]
[null,null,null,null,null,null,null,null,0]
[null,"Cards","IB43-MIFARE DESFire-BL (pack of 10) ,Printable MIFARE DESFire cards",0,0,{"$f":"AVERAGE(D110,E110)","v":0},null,null,0,{"$f":"D110*I110","v":0},{"$f":"E110*I110","v":0},{"$f":"AVERAGE(J110,K110)","v":0},null,null,null,null,"V54515-Z102-A200"]
[null,null,"IB47-MIFARE DESFire-HD, Heavy-duty MIFARE DESFire tags",0,0,0,null,null,0,0,0,0,null,null,null,null,"V54515-Z103-A100"]
[null,null,"MT1-BL, Dual-Tech Card EM/DESFire 10pcs",0,0,0,null,null,0,0,0,0,null,null,null,null,"S54515-Z105-A100"]
[null,null,"IB42-EM , Blank printable EM laminated card without print",0,0,0,null,null,0,0,0,0,null,null,null,null,"V24246-D4901-A1"]
[null,null,null,null,null,null,null,null,0]
[null,"Acustic & optical alarming \ndevices","BES-A/O",0,600,{"$f":"AVERAGE(D115,E115)","v":300},null,null,0,{"$f":"D115*I115","v":0},{"$f":"E115*I115","v":0},{"$f":"AVERAGE(J115,K115)","v":0}]
[null,null,"SG3200AK/OP",0,550,275,null,null,0,0,0,0]
[null,null,"ROLP-LX-x",0,37,18.5,null,null,0,0,0,0]
[null,null,"SIREX Outdoor siren A2P3, 110db, AL",0,6,3,null,null,0,0,0,0,null,null,null,null,"N54539-Z149-A100"]
[null,null,"SIREXF Outdr. siren A2P3,110db,AL,flash",0,6,3,null,null,0,0,0,0,null,null,null,null,"N54539-Z135-A100"]
[null,null,"SIRUS Outdr. siren NFA2P,type3,pc,flash",0,5,2.5,null,null,0,0,0,0,null,null,null,null,"N54539-Z135-A100"]
[null,null,"SA100-AS Outdoor siren",0,4,2,null,null,0,0,0,0,null,null,null,null,"N54539-Z135-A100"]
[null,null,"Piccolo SO/Piccolo/BL/G3S5 (internal)",0,100,4,null,null,0,0,0,0,null,null,null,null,"N54539-Z135-A100"]
[null,null,null,null,null,null,null,null,0]
[null,"Acustic alarming \ndevices","BES-A",0,300,{"$f":"AVERAGE(D124,E124)","v":150},null,null,0,{"$f":"D124*I124","v":0},{"$f":"E124*I124","v":0},{"$f":"AVERAGE(J124,K124)","v":0}]
[null,null,"SG3100AK",0,350,175,null,null,0,0,0,0]
[null,null,null,null,null,null,null,null,0]
[null,"Ext. Devices","xxxx",0,0,{"$f":"AVERAGE(D127,E127)","v":0},null,null,0,{"$f":"D127*I127","v":0},{"$f":"E127*I127","v":0},{"$f":"AVERAGE(J127,K127)","v":0}]
[null,null,"xxxx",0,0,0,null,null,0,0,0,0]
[null,null,"xxxx",0,0,0,null,null,0,0,0,0]
[null,null,"xxxx",0,0,0,null,null,0,0,0,0]
[null,null,"xxxx",0,0,0,null,null,0,0,0,0]
[null,null,"xxxx",0,0,0,null,null,0,0,0,0]
[null,null,null,null,null,null,null,null,0]
[null,"Detectors","ES400 Vibration detector. White",10,10,{"$f":"AVERAGE(D134,E134)","v":10},null,null,0,{"$f":"D134*I134","v":0},{"$f":"E134*I134","v":0},{"$f":"AVERAGE(J134,K134)","v":0},null,null,null,null,"NBPZ:5370490001"]
[null,null,"GB-5700-6 Glassbreak detector,6m,lam",6,6,6,null,null,0,0,0,0,null,null,null,null,"V54535-F103-A200"]
[null,null,"GB-5000-IN Relay-Interface for GB",5,5,5,null,null,0,0,0,0,null,null,null,null,"V54550-F112-A100"]
[null,null,"MK-4400 Magn. Cont.,G2",0,0,0,null,null,0,0,0,0,null,null,null,null,"V54536-F113-A100"]
[null,null,"TKU2 Surveillance contact",0,0,0,null,null,0,0,0,0,null,null,null,null,"VBPZ:2305080001"]
[null,null,"TKU3 Surveillance contact",0,0,0,null,null,0,0,0,0,null,null,null,null,"VBPZ:2305080001"]
[null,null,"TKU4 Surveillance contact",0,0,0,null,null,0,0,0,0,null,null,null,null,"VBPZ:2305080001"]
[null,null,"TKU5 Surveillance contact",0,0,0,null,null,0,0,0,0,null,null,null,null,"VBPZ:2305080001"]
[null,null,"TKU16 Bolt switch contact",0,0,0,null,null,0,0,0,0,null,null,null,null,"VBPZ:2305080001"]
[null,null,"GM710 Seismic detector",2.5,3.5,3,null,null,0,0,0,0]
[null,null,"GM730 Seismic detector",2.5,3.5,3,null,null,0,0,0,0]
[null,null,"xxxx",0,0,0,null,null,0,0,0,0]
[null,null,"MK-2400-S1",0,0,0,null,null,0,0,0,0,null,null,null,null,"V54536-F104-A100"]
[null,null,"MK-2400-2 Magn. Cont.,2m,G2",0,0,0,null,null,0,0,0,0,null,null,null,null,"V54536-F102-A100"]
[null,null,"MK-2400-6 Magn. Cont.,6m,G2",0,0,0,null,null,0,0,0,0,null,null,null,null,"V54536-F102-A200"]
[null,null,"WM-2 Water detector",8,8,8,null,null,0,0,0,0,null,null,null,null,"VDE6:9902500013 "]
[null,null,null,null,null,null,null,null,0]
[null,"Glassbreak\nDetectors","AGB800 Acoustic Glass Break Detector G2",9,9,{"$f":"AVERAGE(D151,E151)","v":9},null,null,0,{"$f":"D151*I151","v":0},{"$f":"E151*I151","v":0},{"$f":"AVERAGE(J151,K151)","v":0},null,null,null,null,"V54535-Z130-A100"]
[null,null,"AGB800-AM Acoustic Glass Break G3",6,6,6,null,null,0,0,0,0,null,null,null,null,"V54535-Z129-A100"]
[null,null,null,null,null,null,null,null,0]
[null,"Batteries and accessories","PS1270 Battery 12v/7.0Ah Flame Ret.",0,0,{"$f":"AVERAGE(D154,E154)","v":0},null,null,0,null,null,null,null,null,null,null,"N54545-Z156-A100"]
[null,null,"PS12120 Battery 12v/12.0Ah Flame Ret.",0,0,0,null,null,0,null,null,null,null,null,null,null,"N54545-Z157-A100"]
[null,null,"PS12170 Battery 12v/17.0Ah Flame Ret.",0,0,0,null,null,0,null,null,null,null,null,null,null,"N54545-Z158-A100"]
[null,null,"PS12380 Battery 12v/38.0Ah Flame Ret.",0,0,0,null,null,0,null,null,null,null,null,null,null,"N54545-Z160-A100"]
[null,null,"PS12260 Battery 12v/26.0Ah Flame Ret.",0,0,0,null,null,0,null,null,null,null,null,null,null,"N54545-Z159-A100"]
[null,null,"Electric cable, 100m",0,0,0,null,null,0,null,null,null,null,null,null,null,"V54592-Z160-A100"]
[null,null,"Electric cable, 500m",0,0,0,null,null,0,null,null,null,null,null,null,null,"V54592-Z159-A100"]
[null,null,null,null,null,null,null,null,0]
[null,null,null,null,null,null,null,null,0]
[null,"Backup accu capacity and backup time",null,"Available*","Required","Power consumers(mA)",null,null,null,{"$f":"SUM(J9:J152)+(Wizard!E39 * 1000)","v":0},{"$f":"SUM(K9:K152)+(Wizard!E39 * 1000)","v":0},{"$f":"SUM(L9:L152)+(Wizard!E39 * 1000)","v":0}]
[null,"Required backup power time in h:",null,{"$f":"Formula!A28","v":{"$error":"#DIV/0!"}},{"$f":"Wizard!E33","v":16},"Panel PSU + ext. PSU available current (mA)",null,null,null,{"$f":"K164","v":0},{"$f":"SUM(M9:M18)+(SUM(M50:M55))","v":0}]
[null,"Required accu total capacity in Ah with  included rest capacity: (if applicable)",null,{"$f":"Formula!A32","v":0},{"$f":"Formula!A18","v":0},"still available current (mA)",null,null,null,{"$f":"K164-J163","v":0},{"$f":"K164-K163","v":0}]
[null,null,null,null,null,null,"Remark: If the available current is red marked, please add an additional PSU to ensure system has sufficient power"]
[]
[]
[null,"*Remark:","Related to the selected panel and ext. PSUs."]
[]
[]
[]
[null,null,null,null,null,null,null,null,null,null,null,null,"mA- (real mA) = remaining "]

{"sheet":"Order form","index":3,"n_rows":165,"n_cols":7,"rows_kept":165,"cut":false,"hidden":false,"merged":[[1,1,4,9]]}
[]
[null,"         SPC - System designer"]
[]
[]
[]
[]
[null,"Project name","-",null,null,null,"Vanderbilt Industries"]
[null,"Date",{"$f":"Summary!D11","v":"-"},null,null,null,"Support material"]
[null,"Order by"]
[null,"Vanderbilt Customer number",1,null,null,null,"Submit your order here"]
[null,"Total ",null,null,null,{"$f":"SUM(F13:F82)","v":0}]
[]
[null,"Part code","Name","Quantity"," Unit Price","Total Price"]
[null,{"$f":"'Power calculation'!Q9","v":"V54541-C113-A100"},{"$f":"'Power calculation'!C9","v":"SPC4221  7Ah/xxh  no IP/G2 cabinet with plastic lid"},{"$f":"'Power calculation'!I9","v":0},{"$f":"'Power calculation'!P9","v":0},{"$f":"E14*D14","v":0}]
[null,{"$f":"'Power calculation'!Q10","v":"V54541-C114-A100"},{"$f":"'Power calculation'!C10","v":"SPC4320  7Ah/xxh  IP/G2 cabinet with plastic lid"},{"$f":"'Power calculation'!I10","v":0},{"$f":"'Power calculation'!P10","v":0},{"$f":"E15*D15","v":0}]
[null,{"$f":"'Power calculation'!Q11","v":"V54541-C109-B100"},{"$f":"'Power calculation'!C11","v":"SPC4320  7Ah/xxh  IP/G2 metal cabinet"},{"$f":"'Power calculation'!I11","v":0},{"$f":"'Power calculation'!P11","v":0},0]
[null,{"$f":"'Power calculation'!Q12","v":"V54541-C106-B100"},{"$f":"'Power calculation'!C12","v":"SPC5320  7Ah/xxh  IP/G2 metal cabinet"},{"$f":"'Power calculation'!I12","v":0},{"$f":"'Power calculation'!P12","v":0},0]
[null,{"$f":"'Power calculation'!Q13","v":"V54541-C107-B100"},{"$f":"'Power calculation'!C13","v":"SPC5330  17Ah/xxh  IP/G3 metal cabinet"},{"$f":"'Power calculation'!I13","v":0},{"$f":"'Power calculation'!P13","v":0},0]
[null,{"$f":"'Power calculation'!Q14","v":"V54541-C105-C100"},{"$f":"'Power calculation'!C14","v":"SPC6330  17Ah/xxh  IP/G3 metal cabinet"},{"$f":"'Power calculation'!I14","v":0},{"$f":"'Power calculation'!P14","v":0},0]
[null,{"$f":"'Power calculation'!Q15","v":"V54541-C117-A100"},{"$f":"'Power calculation'!C15","v":"SPC5350 1x26Ah/xxh  IP/G5 metal cabinet"},{"$f":"'Power calculation'!I15","v":0},{"$f":"'Power calculation'!P15","v":0},0]
[null,{"$f":"'Power calculation'!Q16","v":"V54541-C117-A100"},{"$f":"'Power calculation'!C16","v":"SPC5350 2x26Ah/xxh  IP/G5 metal cabinet"},{"$f":"'Power calculation'!I16","v":0},{"$f":"'Power calculation'!P16","v":0},0]
[null,{"$f":"'Power calculation'!Q17","v":"V54541-C118-A100"},{"$f":"'Power calculation'!C17","v":"SPC6350 1x26Ah/xxh  IP/G5 metal cabinet"},{"$f":"'Power calculation'!I17","v":0},{"$f":"'Power calculation'!P17","v":0},0]
[null,{"$f":"'Power calculation'!Q18","v":"V54541-C118-A100"},{"$f":"'Power calculation'!C18","v":"SPC6350 2x26Ah/xxh  IP/G5 metal cabinet"},{"$f":"'Power calculation'!I18","v":0},{"$f":"'Power calculation'!P18","v":0},0]
[null,{"$f":"'Power calculation'!Q19","v":0},{"$f":"'Power calculation'!C19","v":0},{"$f":"'Power calculation'!I19","v":0},{"$f":"'Power calculation'!P19","v":0},0]
[null,{"$f":"'Power calculation'!Q20","v":"V54554-B101-A100"},{"$f":"'Power calculation'!C20","v":"SPCW110  SiWay RF Kit w. ext. Antenna"},{"$f":"'Power calculation'!I20","v":0},{"$f":"'Power calculation'!P20","v":0},0]
[null,{"$f":"'Power calculation'!Q21","v":"V54554-B105-A100"},{"$f":"'Power calculation'!C21","v":"SPCW111  SiWay RF Kit w. int. Antenna"},{"$f":"'Power calculation'!I21","v":0},{"$f":"'Power calculation'!P21","v":0},0]
[null,{"$f":"'Power calculation'!Q22","v":"V54554-B103-B100"},{"$f":"'Power calculation'!C22","v":"SPCW112  SiWay RF Kit for SPCK42x"},{"$f":"'Power calculation'!I22","v":0},{"$f":"'Power calculation'!P22","v":0},0]
[null,{"$f":"'Power calculation'!Q23","v":"V54554-B104-A100"},{"$f":"'Power calculation'!C23","v":"SPCW114  SiWay RF Kit for SPCK52x"},{"$f":"'Power calculation'!I23","v":0},{"$f":"'Power calculation'!P23","v":0},0]
[null,{"$f":"'Power calculation'!Q24","v":"V54554-F101-B100"},{"$f":"'Power calculation'!C24","v":"SPCW130  SiWay RF Expander "},{"$f":"'Power calculation'!I24","v":0},{"$f":"'Power calculation'!P24","v":0},0]
[null,{"$f":"'Power calculation'!Q25","v":0},{"$f":"'Power calculation'!C25","v":0},{"$f":"'Power calculation'!I25","v":0},{"$f":"'Power calculation'!P25","v":0},0]
[null,{"$f":"'Power calculation'!Q26","v":"V54550-B101-A100"},{"$f":"'Power calculation'!C26","v":"SPCN110  PSTN module"},{"$f":"'Power calculation'!I26","v":0},{"$f":"'Power calculation'!P26","v":0},0]
[null,{"$f":"'Power calculation'!Q27","v":"V54550-B102-A200"},{"$f":"'Power calculation'!C27","v":"SPCN320.000 GSM Module incl. antenna"},{"$f":"'Power calculation'!I27","v":0},{"$f":"'Power calculation'!P27","v":0},0]
[null,{"$f":"'Power calculation'!Q28","v":"V54550-B104-A100"},{"$f":"'Power calculation'!C28","v":"SPCN910  communication interface module"},{"$f":"'Power calculation'!I28","v":0},{"$f":"'Power calculation'!P28","v":0},0]
[null,{"$f":"'Power calculation'!Q29","v":0},{"$f":"'Power calculation'!C29","v":0},{"$f":"'Power calculation'!I29","v":0},{"$f":"'Power calculation'!P29","v":0},0]
[null,{"$f":"'Power calculation'!Q30","v":"V54543-F101-A100"},{"$f":"'Power calculation'!C30","v":"SPCK420  LCD Keypad "},{"$f":"'Power calculation'!I30","v":0},{"$f":"'Power calculation'!P30","v":0},0]
[null,{"$f":"'Power calculation'!Q31","v":"V54543-F102-A100"},{"$f":"'Power calculation'!C31","v":"SPCK421  LCD Keypad with Reader "},{"$f":"'Power calculation'!I31","v":0},{"$f":"'Power calculation'!P31","v":0},0]
[null,{"$f":"'Power calculation'!Q32","v":"V54543-F115-A100"},{"$f":"'Power calculation'!C32","v":"SPCK520 LCD Compact keypad"},{"$f":"'Power calculation'!I32","v":0},{"$f":"'Power calculation'!P32","v":0},0]
[null,{"$f":"'Power calculation'!Q33","v":"V54543-F116-A100"},{"$f":"'Power calculation'!C33","v":"SPCK521 LCD Compact keypad with Mifare/125KHz reader and Audio"},{"$f":"'Power calculation'!I33","v":0},{"$f":"'Power calculation'!P33","v":0},0]
[null,{"$f":"'Power calculation'!Q34","v":"V54543-F110-A100"},{"$f":"'Power calculation'!C34","v":"SPCK620 Comfort Keypad"},{"$f":"'Power calculation'!I34","v":0},{"$f":"'Power calculation'!P34","v":0},0]
[null,{"$f":"'Power calculation'!Q35","v":"V54543-F111-A100"},{"$f":"'Power calculation'!C35","v":"SPCK623 Comfort Keypad (Audio/Card)"},{"$f":"'Power calculation'!I35","v":0},{"$f":"'Power calculation'!P35","v":0},0]
[null,{"$f":"'Power calculation'!Q36","v":0},{"$f":"'Power calculation'!C36","v":0},{"$f":"'Power calculation'!I36","v":0},{"$f":"'Power calculation'!P36","v":0},0]
[null,{"$f":"'Power calculation'!Q37","v":"V54542-F106-A100"},{"$f":"'Power calculation'!C37","v":"SPCE652  Expander (8 Inputs / 2 Outputs) "},{"$f":"'Power calculation'!I37","v":0},{"$f":"'Power calculation'!P37","v":0},0]
[null,{"$f":"'Power calculation'!Q38","v":"V54542-F107-A100"},{"$f":"'Power calculation'!C38","v":"SPCE452  Expander (8 Outputs ) "},{"$f":"'Power calculation'!I38","v":0},{"$f":"'Power calculation'!P38","v":0},0]
[null,{"$f":"'Power calculation'!Q39","v":"V54547-A101-A100"},{"$f":"'Power calculation'!C39","v":"SPCA210  2-Door Expander "},{"$f":"'Power calculation'!I39","v":0},{"$f":"'Power calculation'!P39","v":0},0]
[null,{"$f":"'Power calculation'!Q40","v":"V54542-F105-A100"},{"$f":"'Power calculation'!C40","v":"SPCE120 Indication Expander"},{"$f":"'Power calculation'!I40","v":0},{"$f":"'Power calculation'!P40","v":0},0]
[null,{"$f":"'Power calculation'!Q41","v":"V54542-F104-A100"},{"$f":"'Power calculation'!C41","v":"SPCE110 Key switch Expander"},{"$f":"'Power calculation'!I41","v":0},{"$f":"'Power calculation'!P41","v":0},0]
[null,{"$f":"'Power calculation'!Q42","v":"V54542-F120-A100"},{"$f":"'Power calculation'!C42","v":"SPCV310 Audio station (loudspeaker & Microphone) with housing"},{"$f":"'Power calculation'!I42","v":0},{"$f":"'Power calculation'!P42","v":0},0]
[null,{"$f":"'Power calculation'!Q43","v":0},{"$f":"'Power calculation'!C43","v":"SPCV320 Audio I/O Expander w. 4 inputs/ 1 open collector output"},{"$f":"'Power calculation'!I43","v":0},{"$f":"'Power calculation'!P43","v":0},0]
[null,{"$f":"'Power calculation'!Q44","v":0},{"$f":"'Power calculation'!C44","v":"SPCV321 Audio Input Expander w. 4 inputs / 1 line out"},{"$f":"'Power calculation'!I44","v":0},{"$f":"'Power calculation'!P44","v":0},0]
[null,{"$f":"'Power calculation'!Q45","v":"V54542-F108-B100"},{"$f":"'Power calculation'!C45","v":"SPCV340 Audio I/O Expander w. 4 inputs / 1 open collector output"},{"$f":"'Power calculation'!I45","v":0},{"$f":"'Power calculation'!P45","v":0},0]
[null,{"$f":"'Power calculation'!Q46","v":"V54542-F109-B100"},{"$f":"'Power calculation'!C46","v":"SPCV341 Audio Input Expander w. 4 inputs / 1 line out"},{"$f":"'Power calculation'!I46","v":0},{"$f":"'Power calculation'!P46","v":0},0]
[null,{"$f":"'Power calculation'!Q47","v":"V54542-F119-A100"},{"$f":"'Power calculation'!C47","v":"SPCV410 Audio Expander w. 1 input (slave module)"},{"$f":"'Power calculation'!I47","v":0},{"$f":"'Power calculation'!P47","v":0},0]
[null,{"$f":"'Power calculation'!Q48","v":"V54542-F118-A100"},{"$f":"'Power calculation'!C48","v":"SPCV440 Audio Expander w. 4 inputs/ 1 open collector output "},{"$f":"'Power calculation'!I48","v":0},{"$f":"'Power calculation'!P48","v":0},0]
[null,{"$f":"'Power calculation'!Q49","v":0},{"$f":"'Power calculation'!C49","v":0},{"$f":"'Power calculation'!I49","v":0},{"$f":"'Power calculation'!P49","v":0},0]
[null,{"$f":"'Power calculation'!Q50","v":"V54545-C102-A100"},{"$f":"'Power calculation'!C50","v":"SPCP332 PSU w. I/O Exp. SPCE652 - G2 - 7Ah"},{"$f":"'Power calculation'!I50","v":0},{"$f":"'Power calculation'!P50","v":0},0]
[null,{"$f":"'Power calculation'!Q51","v":"V54545-C101-A100"},{"$f":"'Power calculation'!C51","v":"SPCP333 PSU w. I/O Exp. SPCE652 - G3 - 17Ah"},{"$f":"'Power calculation'!I51","v":0},{"$f":"'Power calculation'!P51","v":0},0]
[null,{"$f":"'Power calculation'!Q52","v":"V54545-C105-A100"},{"$f":"'Power calculation'!C52","v":"SPCP355 PSU w. I/O Exp. SPCE652 -  G5 - 1x26Ah"},{"$f":"'Power calculation'!I52","v":0},{"$f":"'Power calculation'!P52","v":0},0]
[null,{"$f":"'Power calculation'!Q53","v":"V54545-C105-A100"},{"$f":"'Power calculation'!C53","v":"SPCP355 PSU w. I/O Exp. SPCE652 -  G5 - 2x26Ah"},{"$f":"'Power calculation'!I53","v":0},{"$f":"'Power calculation'!P53","v":0},0]
[null,{"$f":"'Power calculation'!Q54","v":"V54545-C103-A100"},{"$f":"'Power calculation'!C54","v":"SPCP432 PSU w. door Exp. SPCA210 - G2 - 7Ah"},{"$f":"'Power calculation'!I54","v":0},{"$f":"'Power calculation'!P54","v":0},0]
[null,{"$f":"'Power calculation'!Q55","v":"V54545-C104-A100"},{"$f":"'Power calculation'!C55","v":"SPCP433 PSU w. door Exp. SPCA210 - G3 - 17Ah"},{"$f":"'Power calculation'!I55","v":0},{"$f":"'Power calculation'!P55","v":0},0]
[null,{"$f":"'Power calculation'!Q56","v":0},{"$f":"'Power calculation'!C56","v":0},{"$f":"'Power calculation'!I56","v":0},{"$f":"'Power calculation'!P56","v":0},0]
[null,{"$f":"'Power calculation'!Q57","v":"V54554-A101-A100"},{"$f":"'Power calculation'!C57","v":"SPCG310 E-BUS Gateway for SPC"},{"$f":"'Power calculation'!I57","v":0},{"$f":"'Power calculation'!P57","v":0},0]
[null,{"$f":"'Power calculation'!Q58","v":0},{"$f":"'Power calculation'!C58","v":"SAT12/SMT12"},{"$f":"'Power calculation'!I58","v":0},{"$f":"'Power calculation'!P58","v":0},0]
[null,{"$f":"'Power calculation'!Q59","v":0},{"$f":"'Power calculation'!C59","v":"SMT22"},{"$f":"'Power calculation'!I59","v":0},{"$f":"'Power calculation'!P59","v":0},0]
[null,{"$f":"'Power calculation'!Q60","v":0},{"$f":"'Power calculation'!C60","v":"SAT24/SMT24"},{"$f":"'Power calculation'!I60","v":0},{"$f":"'Power calculation'!P60","v":0},0]
[null,{"$f":"'Power calculation'!Q61","v":0},{"$f":"'Power calculation'!C61","v":"SMT44"},{"$f":"'Power calculation'!I61","v":0},{"$f":"'Power calculation'!P61","v":0},0]
[null,{"$f":"'Power calculation'!Q62","v":0},{"$f":"'Power calculation'!C62","v":"SAK41"},{"$f":"'Power calculation'!I62","v":0},{"$f":"'Power calculation'!P62","v":0},0]
[null,{"$f":"'Power calculation'!Q63","v":0},{"$f":"'Power calculation'!C63","v":"SAK51"},{"$f":"'Power calculation'!I63","v":0},{"$f":"'Power calculation'!P63","v":0},0]
[null,{"$f":"'Power calculation'!Q64","v":"V54530-F115-A100"},{"$f":"'Power calculation'!C64","v":"PDM-E-I12"},{"$f":"'Power calculation'!I64","v":0},{"$f":"'Power calculation'!P64","v":0},0]
[null,{"$f":"'Power calculation'!Q65","v":"V54530-F116-A100"},{"$f":"'Power calculation'!C65","v":"PDM-E-I18T"},{"$f":"'Power calculation'!I65","v":0},{"$f":"'Power calculation'!P65","v":0},0]
[null,{"$f":"'Power calculation'!Q66","v":"V54531-F130-A100"},{"$f":"'Power calculation'!C66","v":"PDM-E-IXD12"},{"$f":"'Power calculation'!I66","v":0},{"$f":"'Power calculation'!P66","v":0},0]
[null,{"$f":"'Power calculation'!Q67","v":"V54531-F131-A100"},{"$f":"'Power calculation'!C67","v":"PDM-E-IXD18T"},{"$f":"'Power calculation'!I67","v":0},{"$f":"'Power calculation'!P67","v":0},0]
[null,{"$f":"'Power calculation'!Q68","v":"VBPZ: 5198210001"},{"$f":"'Power calculation'!C68","v":"UP370MD E-BUS"},{"$f":"'Power calculation'!I68","v":0},{"$f":"'Power calculation'!P68","v":0},0]
[null,{"$f":"'Power calculation'!Q69","v":"VBPZ: 5199990001"},{"$f":"'Power calculation'!C69","v":"UP370T E-BUS"},{"$f":"'Power calculation'!I69","v":0},{"$f":"'Power calculation'!P69","v":0},0]
[null,{"$f":"'Power calculation'!Q70","v":0},{"$f":"'Power calculation'!C70","v":"DIVERS"},{"$f":"'Power calculation'!I70","v":0},{"$f":"'Power calculation'!P70","v":0},0]
[null,{"$f":"'Power calculation'!Q71","v":0},{"$f":"'Power calculation'!C71","v":0},{"$f":"'Power calculation'!I71","v":0},{"$f":"'Power calculation'!P71","v":0},0]
[null,{"$f":"'Power calculation'!Q72","v":"V54530-F114-A100"},{"$f":"'Power calculation'!C72","v":"PDM-I12 Passiv Infrared Detector 12m detection range"},{"$f":"'Power calculation'!I72","v":0},{"$f":"'Power calculation'!P72","v":0},0]
[null,{"$f":"'Power calculation'!Q73","v":"V54530-F105-A100"},{"$f":"'Power calculation'!C73","v":"PDM-I12T Passiv Infrared Detector 12m detection range with Antimask"},{"$f":"'Power calculation'!I73","v":0},{"$f":"'Power calculation'!P73","v":0},0]
[null,{"$f":"'Power calculation'!Q74","v":"V54530-F106-A100"},{"$f":"'Power calculation'!C74","v":"PDM-I18 Passiv Infrared Detector 18m detection range"},{"$f":"'Power calculation'!I74","v":0},{"$f":"'Power calculation'!P74","v":0},{"$f":"E79*D79","v":0}]
[null,{"$f":"'Power calculation'!Q75","v":"V54530-F107-A100"},{"$f":"'Power calculation'!C75","v":"PDM-I18T Passiv Infrared Detector 18m detection range with Antimask"},{"$f":"'Power calculation'!I75","v":0},{"$f":"'Power calculation'!P75","v":0},0]
[null,{"$f":"'Power calculation'!Q76","v":0},{"$f":"'Power calculation'!C76","v":0},{"$f":"'Power calculation'!I76","v":0},{"$f":"'Power calculation'!P76","v":0},0]
[null,{"$f":"'Power calculation'!Q77","v":"V54531-F124-A100"},{"$f":"'Power calculation'!C77","v":"PDM-IXD12 Dual Detector (PIR/MW) 12m detection range"},{"$f":"'Power calculation'!I77","v":0},{"$f":"'Power calculation'!P77","v":0},0]
[null,{"$f":"'Power calculation'!Q78","v":"V54531-F115-A100"},{"$f":"'Power calculation'!C78","v":"PDM-IXD12T Dual Detector (PIR/MW) 12m detection range with Antimask"},{"$f":"'Power calculation'!I78","v":0},{"$f":"'Power calculation'!P78","v":0},0]
[null,{"$f":"'Power calculation'!Q79","v":"V54531-F118-A100"},{"$f":"'Power calculation'!C79","v":"PDM-IXD18 Dual Detector (PIR/MW) 18m detection range"},{"$f":"'Power calculation'!I79","v":0},{"$f":"'Power calculation'!P79","v":0},0]
[null,{"$f":"'Power calculation'!Q80","v":"V54531-F121-A100"},{"$f":"'Power calculation'!C80","v":"PDM-IXD18T Dual Detector (PIR/MW) 18m detection range with Antimask"},{"$f":"'Power calculation'!I80","v":0},{"$f":"'Power calculation'!P80","v":0},0]
[null,{"$f":"'Power calculation'!Q81","v":"V54531-F113-A100"},{"$f":"'Power calculation'!C81","v":"PDM-IXA12 Dual Detector (PIR/MW) 12m detection range"},{"$f":"'Power calculation'!I81","v":0},{"$f":"'Power calculation'!P81","v":0},0]
[null,{"$f":"'Power calculation'!Q82","v":"V54531-F116-A100"},{"$f":"'Power calculation'!C82","v":"PDM-IXA12T Dual Detector (PIR/MW) 12m detection range with Antimask"},{"$f":"'Power calculation'!I82","v":0},{"$f":"'Power calculation'!P82","v":0},0]
[null,{"$f":"'Power calculation'!Q83","v":"V54531-F119-A100"},{"$f":"'Power calculation'!C83","v":"PDM-IXA18 Dual Detector (PIR/MW) 18m detection range"},{"$f":"'Power calculation'!I83","v":0},{"$f":"'Power calculation'!P83","v":0},0]
[null,{"$f":"'Power calculation'!Q84","v":"V54531-F122-A100"},{"$f":"'Power calculation'!C84","v":"PDM-IXA18T Dual Detector (PIR/MW) 18m detection range with Antimask"},{"$f":"'Power calculation'!I84","v":0},{"$f":"'Power calculation'!P84","v":0},0]
[null,{"$f":"'Power calculation'!Q85","v":"V54531-F114-A100"},{"$f":"'Power calculation'!C85","v":"PDM-IXE12 Dual Detector (PIR/MW) 12m detection range"},{"$f":"'Power calculation'!I85","v":0},{"$f":"'Power calculation'!P85","v":0},0]
[null,{"$f":"'Power calculation'!Q86","v":"V54531-F117-A100"},{"$f":"'Power calculation'!C86","v":"PDM-IXE12T Dual Detector (PIR/MW) 12m detection range with Antimask"},{"$f":"'Power calculation'!I86","v":0},{"$f":"'Power calculation'!P86","v":0},0]
[null,{"$f":"'Power calculation'!Q87","v":"V54531-F120-A100"},{"$f":"'Power calculation'!C87","v":"PDM-IXE18 Dual Detector (PIR/MW) 18m detection range"},{"$f":"'Power calculation'!I87","v":0},{"$f":"'Power calculation'!P87","v":0},0]
[null,{"$f":"'Power calculation'!Q88","v":"V54531-F123-A100"},{"$f":"'Power calculation'!C88","v":"PDM-IXE18T Dual Detector (PIR/MW) 18m detection range with Antimask"},{"$f":"'Power calculation'!I88","v":0},{"$f":"'Power calculation'!P88","v":0},0]
[null,{"$f":"'Power calculation'!Q89","v":0},{"$f":"'Power calculation'!C89","v":"UP370MD Dual Detector (PIR/US) 10m detection range with Alarm storage"},{"$f":"'Power calculation'!I89","v":0},{"$f":"'Power calculation'!P89","v":0},0]
[null,{"$f":"'Power calculation'!Q90","v":0},{"$f":"'Power calculation'!C90","v":"UP370T Dual Detector (PIR/US) 10m detection range with Antimask"},{"$f":"'Power calculation'!I90","v":0},{"$f":"'Power calculation'!P90","v":0},0]
[null,{"$f":"'Power calculation'!Q91","v":0},{"$f":"'Power calculation'!C91","v":0},{"$f":"'Power calculation'!I91","v":0},{"$f":"'Power calculation'!P91","v":0},0]
[null,{"$f":"'Power calculation'!Q92","v":"V24246-F4703-A1"},{"$f":"'Power calculation'!C92","v":"HD500-Cotag (card reader without keypad)"},{"$f":"'Power calculation'!I92","v":0},{"$f":"'Power calculation'!P92","v":0},0]
[null,{"$f":"'Power calculation'!Q93","v":0},{"$f":"'Power calculation'!C93","v":"HD500-EM (card reader without keypad)"},{"$f":"'Power calculation'!I93","v":0},{"$f":"'Power calculation'!P93","v":0},0]
[null,{"$f":"'Power calculation'!Q94","v":"N54547-Z101-A500"},{"$f":"'Power calculation'!C94","v":"HMD TKSV-SES-S / CDA2"},{"$f":"'Power calculation'!I94","v":0},{"$f":"'Power calculation'!P94","v":0},0]
[null,{"$f":"'Power calculation'!Q95","v":"N54547-Z101-A400"},{"$f":"'Power calculation'!C95","v":"HMD TKWA AES / CDA2"},{"$f":"'Power calculation'!I95","v":0},{"$f":"'Power calculation'!P95","v":0},0]
[null,{"$f":"'Power calculation'!Q96","v":"N54547-Z101-A300"},{"$f":"'Power calculation'!C96","v":"HMD LWA-AES / CDA2"},{"$f":"'Power calculation'!I96","v":0},{"$f":"'Power calculation'!P96","v":0},0]
[null,{"$f":"'Power calculation'!Q97","v":"V54504-F101-A100"},{"$f":"'Power calculation'!C97","v":"VR10S-MF (Mifare card reader)"},{"$f":"'Power calculation'!I97","v":0},{"$f":"'Power calculation'!P97","v":0},0]
[null,{"$f":"'Power calculation'!Q98","v":"V54504-F111-A100\n"},{"$f":"'Power calculation'!C98","v":"VR20M-MF Mifare card readerstandard"},{"$f":"'Power calculation'!I98","v":0},{"$f":"'Power calculation'!P98","v":0},0]
[null,{"$f":"'Power calculation'!Q99","v":"N54547-B105-A100       "},{"$f":"'Power calculation'!C99","v":"N54547-B105-A100      VR reader interface"},{"$f":"'Power calculation'!I99","v":0},{"$f":"'Power calculation'!P99","v":0},0]
[null,{"$f":"'Power calculation'!Q100","v":0},{"$f":"'Power calculation'!C100","v":0},{"$f":"'Power calculation'!I100","v":0},{"$f":"'Power calculation'!P100","v":0},0]
[null,{"$f":"'Power calculation'!Q101","v":"V54504-F112-A100"},{"$f":"'Power calculation'!C101","v":"VR50M-MF Mifare card reader standard with keypad"},{"$f":"'Power calculation'!I101","v":0},{"$f":"'Power calculation'!P101","v":0},0]
[null,{"$f":"'Power calculation'!Q102","v":0},{"$f":"'Power calculation'!C102","v":"AR6182-MX (card reader with keypad)"},{"$f":"'Power calculation'!I102","v":0},{"$f":"'Power calculation'!P102","v":0},0]
[null,{"$f":"'Power calculation'!Q103","v":"V54501-F1-A1"},{"$f":"'Power calculation'!C103","v":"PP500-EM (card reader with keypad)"},{"$f":"'Power calculation'!I103","v":0},{"$f":"'Power calculation'!P103","v":0},0]
[null,{"$f":"'Power calculation'!Q104","v":0},{"$f":"'Power calculation'!C104","v":"HFS-TKWA-AES/CDA2  (card reader with keypad- color silver)"},{"$f":"'Power calculation'!I104","v":0},{"$f":"'Power calculation'!P104","v":0},0]
[null,{"$f":"'Power calculation'!Q105","v":0},{"$f":"'Power calculation'!C105","v":"HFS-TKWA-APW/CDA2 (card reader with keypad- color white)"},{"$f":"'Power calculation'!I105","v":0},{"$f":"'Power calculation'!P105","v":0},0]
[null,{"$f":"'Power calculation'!Q106","v":0},{"$f":"'Power calculation'!C106","v":"HFS-KLS-SMT/CDA2 (card reader with keypad) Siedle vario 611"},{"$f":"'Power calculation'!I106","v":0},{"$f":"'Power calculation'!P106","v":0},0]
[null,{"$f":"'Power calculation'!Q107","v":"V54504-F102-A100"},{"$f":"'Power calculation'!C107","v":"VR40S-MF (Mifare card reader with keyboard and display)"},{"$f":"'Power calculation'!I107","v":0},{"$f":"'Power calculation'!P107","v":0},0]
[null,{"$f":"'Power calculation'!Q108","v":0},{"$f":"'Power calculation'!C108","v":"N54547-B105-A100      VR reader interface"},{"$f":"'Power calculation'!I108","v":0},{"$f":"'Power calculation'!P108","v":0},0]
[null,{"$f":"'Power calculation'!Q109","v":0},{"$f":"'Power calculation'!C109","v":0},{"$f":"'Power calculation'!I109","v":0},{"$f":"'Power calculation'!P109","v":0},0]
[null,{"$f":"'Power calculation'!Q110","v":"V54515-Z102-A200"},{"$f":"'Power calculation'!C110","v":"IB43-MIFARE DESFire-BL (pack of 10) ,Printable MIFARE DESFire cards"},{"$f":"'Power calculation'!I110","v":0},{"$f":"'Power calculation'!P110","v":0},0]
[null,{"$f":"'Power calculation'!Q111","v":"V54515-Z103-A100"},{"$f":"'Power calculation'!C111","v":"IB47-MIFARE DESFire-HD, Heavy-duty MIFARE DESFire tags"},{"$f":"'Power calculation'!I111","v":0},{"$f":"'Power calculation'!P111","v":0},0]
[null,{"$f":"'Power calculation'!Q112","v":"S54515-Z105-A100"},{"$f":"'Power calculation'!C112","v":"MT1-BL, Dual-Tech Card EM/DESFire 10pcs"},{"$f":"'Power calculation'!I112","v":0},{"$f":"'Power calculation'!P112","v":0},0]
[null,{"$f":"'Power calculation'!Q113","v":"V24246-D4901-A1"},{"$f":"'Power calculation'!C113","v":"IB42-EM , Blank printable EM laminated card without print"},{"$f":"'Power calculation'!I113","v":0},{"$f":"'Power calculation'!P113","v":0},0]
[null,{"$f":"'Power calculation'!Q114","v":0},{"$f":"'Power calculation'!C114","v":0},{"$f":"'Power calculation'!I114","v":0},{"$f":"'Power calculation'!P114","v":0},0]
[null,{"$f":"'Power calculation'!Q115","v":0},{"$f":"'Power calculation'!C115","v":"BES-A/O"},{"$f":"'Power calculation'!I115","v":0},{"$f":"'Power calculation'!P115","v":0},0]
[null,{"$f":"'Power calculation'!Q116","v":0},{"$f":"'Power calculation'!C116","v":"SG3200AK/OP"},{"$f":"'Power calculation'!I116","v":0},{"$f":"'Power calculation'!P116","v":0},0]
[null,{"$f":"'Power calculation'!Q117","v":0},{"$f":"'Power calculation'!C117","v":"ROLP-LX-x"},{"$f":"'Power calculation'!I117","v":0},{"$f":"'Power calculation'!P117","v":0},0]
[null,{"$f":"'Power calculation'!Q118","v":"N54539-Z149-A100"},{"$f":"'Power calculation'!C118","v":"SIREX Outdoor siren A2P3, 110db, AL"},{"$f":"'Power calculation'!I118","v":0},{"$f":"'Power calculation'!P118","v":0},0]
[null,{"$f":"'Power calculation'!Q119","v":"N54539-Z135-A100"},{"$f":"'Power calculation'!C119","v":"SIREXF Outdr. siren A2P3,110db,AL,flash"},{"$f":"'Power calculation'!I119","v":0},{"$f":"'Power calculation'!P119","v":0},0]
[null,{"$f":"'Power calculation'!Q120","v":"N54539-Z135-A100"},{"$f":"'Power calculation'!C120","v":"SIRUS Outdr. siren NFA2P,type3,pc,flash"},{"$f":"'Power calculation'!I120","v":0},{"$f":"'Power calculation'!P120","v":0},0]
[null,{"$f":"'Power calculation'!Q121","v":"N54539-Z135-A100"},{"$f":"'Power calculation'!C121","v":"SA100-AS Outdoor siren"},{"$f":"'Power calculation'!I121","v":0},{"$f":"'Power calculation'!P121","v":0},0]
[null,{"$f":"'Power calculation'!Q122","v":"N54539-Z135-A100"},{"$f":"'Power calculation'!C122","v":"Piccolo SO/Piccolo/BL/G3S5 (internal)"},{"$f":"'Power calculation'!I122","v":0},{"$f":"'Power calculation'!P122","v":0},0]
[null,{"$f":"'Power calculation'!Q123","v":0},{"$f":"'Power calculation'!C123","v":0},{"$f":"'Power calculation'!I123","v":0},{"$f":"'Power calculation'!P123","v":0},0]
[null,{"$f":"'Power calculation'!Q124","v":0},{"$f":"'Power calculation'!C124","v":"BES-A"},{"$f":"'Power calculation'!I124","v":0},{"$f":"'Power calculation'!P124","v":0},0]
[null,{"$f":"'Power calculation'!Q125","v":0},{"$f":"'Power calculation'!C125","v":"SG3100AK"},{"$f":"'Power calculation'!I125","v":0},{"$f":"'Power calculation'!P125","v":0},0]
[null,{"$f":"'Power calculation'!Q126","v":0},{"$f":"'Power calculation'!C126","v":0},{"$f":"'Power calculation'!I126","v":0},{"$f":"'Power calculation'!P126","v":0},0]
[null,{"$f":"'Power calculation'!Q127","v":0},{"$f":"'Power calculation'!C127","v":"xxxx"},{"$f":"'Power calculation'!I127","v":0},{"$f":"'Power calculation'!P127","v":0},0]
[null,{"$f":"'Power calculation'!Q128","v":0},{"$f":"'Power calculation'!C128","v":"xxxx"},{"$f":"'Power calculation'!I128","v":0},{"$f":"'Power calculation'!P128","v":0},0]
[null,{"$f":"'Power calculation'!Q129","v":0},{"$f":"'Power calculation'!C129","v":"xxxx"},{"$f":"'Power calculation'!I129","v":0},{"$f":"'Power calculation'!P129","v":0},0]
[null,{"$f":"'Power calculation'!Q130","v":0},{"$f":"'Power calculation'!C130","v":"xxxx"},{"$f":"'Power calculation'!I130","v":0},{"$f":"'Power calculation'!P130","v":0},0]
[null,{"$f":"'Power calculation'!Q131","v":0},{"$f":"'Power calculation'!C131","v":"xxxx"},{"$f":"'Power calculation'!I131","v":0},{"$f":"'Power calculation'!P131","v":0},0]
[null,{"$f":"'Power calculation'!Q132","v":0},{"$f":"'Power calculation'!C132","v":"xxxx"},{"$f":"'Power calculation'!I132","v":0},{"$f":"'Power calculation'!P132","v":0},0]
[null,{"$f":"'Power calculation'!Q133","v":0},{"$f":"'Power calculation'!C133","v":0},{"$f":"'Power calculation'!I133","v":0},{"$f":"'Power calculation'!P133","v":0},0]
[null,{"$f":"'Power calculation'!Q134","v":"NBPZ:5370490001"},{"$f":"'Power calculation'!C134","v":"ES400 Vibration detector. White"},{"$f":"'Power calculation'!I134","v":0},{"$f":"'Power calculation'!P134","v":0},0]
[null,{"$f":"'Power calculation'!Q135","v":"V54535-F103-A200"},{"$f":"'Power calculation'!C135","v":"GB-5700-6 Glassbreak detector,6m,lam"},{"$f":"'Power calculation'!I135","v":0},{"$f":"'Power calculation'!P135","v":0},0]
[null,{"$f":"'Power calculation'!Q136","v":"V54550-F112-A100"},{"$f":"'Power calculation'!C136","v":"GB-5000-IN Relay-Interface for GB"},{"$f":"'Power calculation'!I136","v":0},{"$f":"'Power calculation'!P136","v":0},0]
[null,{"$f":"'Power calculation'!Q137","v":"V54536-F113-A100"},{"$f":"'Power calculation'!C137","v":"MK-4400 Magn. Cont.,G2"},{"$f":"'Power calculation'!I137","v":0},{"$f":"'Power calculation'!P137","v":0},0]
[null,{"$f":"'Power calculation'!Q138","v":"VBPZ:2305080001"},{"$f":"'Power calculation'!C138","v":"TKU2 Surveillance contact"},{"$f":"'Power calculation'!I138","v":0},{"$f":"'Power calculation'!P138","v":0},{"$f":"E143*D143","v":0}]
[null,{"$f":"'Power calculation'!Q139","v":"VBPZ:2305080001"},{"$f":"'Power calculation'!C139","v":"TKU3 Surveillance contact"},{"$f":"'Power calculation'!I139","v":0},{"$f":"'Power calculation'!P139","v":0},0]
[null,{"$f":"'Power calculation'!Q140","v":"VBPZ:2305080001"},{"$f":"'Power calculation'!C140","v":"TKU4 Surveillance contact"},{"$f":"'Power calculation'!I140","v":0},{"$f":"'Power calculation'!P140","v":0},0]
[null,{"$f":"'Power calculation'!Q141","v":"VBPZ:2305080001"},{"$f":"'Power calculation'!C141","v":"TKU5 Surveillance contact"},{"$f":"'Power calculation'!I141","v":0},{"$f":"'Power calculation'!P141","v":0},0]
[null,{"$f":"'Power calculation'!Q142","v":"VBPZ:2305080001"},{"$f":"'Power calculation'!C142","v":"TKU16 Bolt switch contact"},{"$f":"'Power calculation'!I142","v":0},{"$f":"'Power calculation'!P142","v":0},0]
[null,{"$f":"'Power calculation'!Q143","v":0},{"$f":"'Power calculation'!C143","v":"GM710 Seismic detector"},{"$f":"'Power calculation'!I143","v":0},{"$f":"'Power calculation'!P143","v":0},0]
[null,{"$f":"'Power calculation'!Q144","v":0},{"$f":"'Power calculation'!C144","v":"GM730 Seismic detector"},{"$f":"'Power calculation'!I144","v":0},{"$f":"'Power calculation'!P144","v":0},0]
[null,{"$f":"'Power calculation'!Q145","v":0},{"$f":"'Power calculation'!C145","v":"xxxx"},{"$f":"'Power calculation'!I145","v":0},{"$f":"'Power calculation'!P145","v":0},0]
[null,{"$f":"'Power calculation'!Q146","v":"V54536-F104-A100"},{"$f":"'Power calculation'!C146","v":"MK-2400-S1"},{"$f":"'Power calculation'!I146","v":0},{"$f":"'Power calculation'!P146","v":0},0]
[null,{"$f":"'Power calculation'!Q147","v":"V54536-F102-A100"},{"$f":"'Power calculation'!C147","v":"MK-2400-2 Magn. Cont.,2m,G2"},{"$f":"'Power calculation'!I147","v":0},{"$f":"'Power calculation'!P147","v":0},0]
[null,{"$f":"'Power calculation'!Q148","v":"V54536-F102-A200"},{"$f":"'Power calculation'!C148","v":"MK-2400-6 Magn. Cont.,6m,G2"},{"$f":"'Power calculation'!I148","v":0},{"$f":"'Power calculation'!P148","v":0},0]
[null,{"$f":"'Power calculation'!Q149","v":"VDE6:9902500013 "},{"$f":"'Power calculation'!C149","v":"WM-2 Water detector"},{"$f":"'Power calculation'!I149","v":0},{"$f":"'Power calculation'!P149","v":0},0]
[null,{"$f":"'Power calculation'!Q150","v":0},{"$f":"'Power calculation'!C150","v":0},{"$f":"'Power calculation'!I150","v":0},{"$f":"'Power calculation'!P150","v":0},0]
[null,{"$f":"'Power calculation'!Q151","v":"V54535-Z130-A100"},{"$f":"'Power calculation'!C151","v":"AGB800 Acoustic Glass Break Detector G2"},{"$f":"'Power calculation'!I151","v":0},{"$f":"'Power calculation'!P151","v":0},0]
[null,{"$f":"'Power calculation'!Q152","v":"V54535-Z129-A100"},{"$f":"'Power calculation'!C152","v":"AGB800-AM Acoustic Glass Break G3"},{"$f":"'Power calculation'!I152","v":0},{"$f":"'Power calculation'!P152","v":0},0]
[null,{"$f":"'Power calculation'!Q153","v":0},{"$f":"'Power calculation'!C153","v":0},{"$f":"'Power calculation'!I153","v":0},{"$f":"'Power calculation'!P153","v":0},0]
[null,{"$f":"'Power calculation'!Q154","v":"N54545-Z156-A100"},{"$f":"'Power calculation'!C154","v":"PS1270 Battery 12v/7.0Ah Flame Ret."},{"$f":"'Power calculation'!I154","v":0},{"$f":"'Power calculation'!P154","v":0},0]
[null,{"$f":"'Power calculation'!Q155","v":"N54545-Z157-A100"},{"$f":"'Power calculation'!C155","v":"PS12120 Battery 12v/12.0Ah Flame Ret."},{"$f":"'Power calculation'!I155","v":0},{"$f":"'Power calculation'!P155","v":0},0]
[null,{"$f":"'Power calculation'!Q156","v":"N54545-Z158-A100"},{"$f":"'Power calculation'!C156","v":"PS12170 Battery 12v/17.0Ah Flame Ret."},{"$f":"'Power calculation'!I156","v":0},{"$f":"'Power calculation'!P156","v":0},{"$f":"E161*D161","v":0}]
[null,{"$f":"'Power calculation'!Q157","v":"N54545-Z160-A100"},{"$f":"'Power calculation'!C157","v":"PS12380 Battery 12v/38.0Ah Flame Ret."},{"$f":"'Power calculation'!I157","v":0},{"$f":"'Power calculation'!P157","v":0},{"$f":"E162*D162","v":0}]
[null,{"$f":"'Power calculation'!Q158","v":"N54545-Z159-A100"},{"$f":"'Power calculation'!C158","v":"PS12260 Battery 12v/26.0Ah Flame Ret."},{"$f":"'Power calculation'!I158","v":0},{"$f":"'Power calculation'!P158","v":0},0]
[null,{"$f":"'Power calculation'!Q159","v":"V54592-Z160-A100"},{"$f":"'Power calculation'!C159","v":"Electric cable, 100m"},{"$f":"'Power calculation'!I159","v":0},{"$f":"'Power calculation'!P159","v":0},0]
[null,{"$f":"'Power calculation'!Q160","v":"V54592-Z159-A100"},{"$f":"'Power calculation'!C160","v":"Electric cable, 500m"},{"$f":"'Power calculation'!I160","v":0},{"$f":"'Power calculation'!P160","v":0},0]

{"sheet":"Summary","index":4,"n_rows":41,"n_cols":11,"rows_kept":41,"cut":false,"hidden":false,"merged":[[3,1,6,6]]}
[]
[]
[]
[null,"System Summary"]
[null,null,null,null,null,null,null,"Support material"]
[null,null,null,null,null,null,null,"Limits and variants"]
[null,null,null,null,null,null,null,"Specifier resources"]
[null,null,null,"Current System",null,"Required",null,"Limit of system"]
[null,"Panel type",null,null,null,null,null,null,0,0]
[null,"Project Name",null,{"$f":"Wizard!E29","v":"-"},null,"-"]
[null,"Date ",null,{"$f":"Wizard!E31","v":"-"}]
[null,"Ordered by"]
[null,"Input/Output"]
[null,"Total Inputs available",null,{"$f":"(D30*8) + I9","v":0},null,{"$f":"Wizard!H10","v":20},null,0,null,{"$f":"IF(D14>H14,1,0)","v":0},{"$f":"IF(F14>D14,1,0)","v":1}]
[null,"Total Outputs available",null,{"$f":"(D31*8) +(D30*2)+J9","v":0},null,{"$f":"Wizard!H12","v":0},null,0,null,{"$f":"IF(D15>H15,1,0)","v":0},{"$f":"IF(F15>D15,1,0)","v":0}]
[null,"Total detectors (excluding doors)",null,{"$f":"'Power calculation'!I72+'Power calculation'!I73+'Power calculation'!I74+'Power calculation'!I75+'Power calculation'!I77+'Power calculation'!I78+'Power calculation'!I79+'Power calculation'!I80+'Power calculation'!I90+'Power calculation'!I89 + SUM('Power calculation'!I134:I149)+'Power calculation'!I151+'Power calculation'!I152-D36","v":0},null,null,null,null,null,0]
[null,"Total PIR & Dual",null,{"$f":"SUM('Power calculation'!I72:I90)","v":0},null,null,null,null,null,0]
[null,"Users",null,"-",null,{"$f":"Wizard!H18","v":40},null,0,null,{"$f":"IF(F18>H18,1,0)","v":1},{"$f":"IF(F18>H18,1,0)","v":1}]
[null,"Cards",null,{"$f":"('Power calculation'!I110*10) +'Power calculation'!I111+('Power calculation'!I112 *10)+'Power calculation'!I113","v":0},null,{"$f":"Wizard!H20","v":0},null,null,null,{"$f":"IF(F19>H19,1,0)","v":0},{"$f":"IF(F19>H19,1,0)","v":0}]
[null,"Areas",null,null,null,{"$f":"Wizard!H22","v":1},null,0,null,{"$f":"IF(F20>H20,1,0)","v":1},{"$f":"IF(F20>H20,1,0)","v":1}]
[null,null,null,null,null,null,null,null,null,0,{"$f":"IF(F21>D21,1,0)","v":0}]
[null,"Verification devices",null,null,null,null,null,null,null,0,0]
[null,"Total audio expanders",null,{"$f":"'Power calculation'!I42+'Power calculation'!I43+'Power calculation'!I44+'Power calculation'!I45+'Power calculation'!I46+'Power calculation'!I47+'Power calculation'!I48","v":0},null,null,null,null,null,0,0]
[null,null,null,null,null,null,null,null,null,0,0]
[null,"Keypads",null,null,null,null,null,null,null,0,0]
[null,"Total Keypads",null,{"$f":"SUM('Power calculation'!I30:I35)","v":0},null,{"$f":"Wizard!H14","v":1},null,0,null,0,{"$f":"IF(F26>H26,1,0)","v":1}]
[null,null,null,null,null,null,null,null,null,0,0]
[null,"Expanders",null,null,null,null,null,null,null,0,0]
[null,"Total Expanders",null,{"$f":"D30+D31+D23+'Power calculation'!I41+Summary!I41+Summary!D34+Summary!D26","v":0},null,null,null,0,null,0,{"$f":"IF(D29>H29,1,0)","v":0}]
[null,"Total Input expanders",null,{"$f":"('Power calculation'!I37+'Power calculation'!I50+'Power calculation'!I51+'Power calculation'!I52+'Power calculation'!I53)","v":0},null,null,null,0,null,0,{"$f":"IF(D30>H30,1,0)","v":0}]
[null,"Total output expanders",null,{"$f":"'Power calculation'!I38","v":0},null,null,null,{"$f":"H30","v":0},null,{"$f":"IF(D31>H31,1,0)","v":0}]
[null,null,null,null,null,null,null,null,null,0,0]
[null,"Doors",null,null,null,null,null,null,null,0,0]
[null,"Total Door expanders",null,{"$f":"'Power calculation'!I54+'Power calculation'!I55+'Power calculation'!I39","v":0},null,{"$f":"Wizard!H16","v":0},null,0,null,0,0]
[null,"Total readers",null,{"$f":"SUM('Power calculation'!I92:I106)","v":0},null,0,null,null,null,0,0]
[null,"Total Door contacts",null,{"$f":"F36","v":0},null,{"$f":"Wizard!P23+Wizard!P24","v":0},null,null,null,0,0]
[null,"Batteries",null,null,null,null,null,null,null,0,0]
[null,"Total 7Ah",null,{"$f":"'Power calculation'!I9+'Power calculation'!I10+'Power calculation'!I11+'Power calculation'!I12+'Power calculation'!I50+'Power calculation'!I54","v":0},null,0,null,null,null,0,0]
[null,"Total 17Ah",null,{"$f":"'Power calculation'!I13+'Power calculation'!I14+'Power calculation'!I51+'Power calculation'!I55","v":0},null,0,null,null,null,0,0]
[null,"Total 26Ah",null,{"$f":"'Power calculation'!I15+('Power calculation'!I16*2)+'Power calculation'!I17+('Power calculation'!I18*2)+'Power calculation'!I52+('Power calculation'!I53*2)","v":0},null,0,null,null,null,0,0]
[null,null,null,null,null,null,null,null,null,null,0]

{"sheet":"Release notes","index":5,"n_rows":27,"n_cols":4,"rows_kept":27,"cut":false,"hidden":true,"merged":[]}
["Release notes 2014-12-14","2017-01-11"]
["Power supply values has been changed"]
[null,"SPC5x5x",2600,2200]
[null,"SPC6x5x ",2600,2200]
["SiWay devices added, removed"]
[null,"SPCW114","new"]
[null,"SPCW111","remove"]
["V.1.5 "]
["SPC devices"]
[null,"added redcare modem"]
[]
[]
[]
["V1.6"]
["2015-05-13"]
[]
[null,"SPCW114","addded"]
[null,"SPCK5xx series","added"]
[]
["V1.7"]
["2016-02-26"]
[null,"ROLP-LX-x","added"]
[null,"SPC5230 name changed to SPC5320"]
[null,"SPC5320 battery power changed from 17Ah to 7Ah"]
[]
["V1.8"]
[null,"Rebranded to Vanderbilt"]

{"sheet":"Formula","index":6,"n_rows":32,"n_cols":15,"rows_kept":32,"cut":false,"hidden":true,"merged":[[1,0,1,7],[1,10,1,14],[3,0,3,6],[9,0,9,6],[14,0,14,6],[10,0,10,6],[15,0,15,6],[19,0,19,6],[24,0,24,6],[25,0,25,6],[29,0,29,6]]}
[]
["Formulars",null,null,null,null,null,null,null,null,null,"Country approvals"]
[]
["Min. required battery rest capacity in %",null,null,null,null,null,null,null,null,null,"UK","PD6662 (EN50131 Grade 2 based)","PD6662 (EN50131 Grade 3 based)","unrestricted"]
["`=100% - \"customer value on page 1\"",null,null,null,null,null,null,null,null,null,"Ireland","EN50131 Grade 2","EN50131 Grade 3","unrestricted"]
[{"$f":"100-Wizard!E36","v":99.99},null,null,null,null,null,null,null,null,null,"E.U.","EN50131 Grade 2","EN50131 Grade 3","unrestricted"]
[null,null,null,null,null,null,null,null,null,null,"Sweden","SSF 1014:3 Larmclass 1","SSF 1014:3 Larmclass 2","unrestricted"]
[null,null,null,null,null,null,null,null,null,null,"Schweiz","SES EN-CH-Grad 2","SES EN-CH-Grad 3","unbeschränkt"]
[null,null,null,null,null,null,null,null,null,null,"Deutschland","VdS Klasse A","VdS Klasse C","unbeschränkt"]
["Required accu total capacity in Ah (without min. battery capacity)",null,null,null,null,null,null,null,null,null,"Österreich","VSÖ Privat","VSÖ Gewerbe","VSÖ Werteschutz","unbeschränkt"]
["`= required standbytime x \"idle current\" + \"add. Alarm current\" x \"max. current\"/1000",null,null,null,null,null,null,null,null,null,"Belgium","TO-14 (EN50131 Grade 2 based)","TO-14 (EN50131 Grade 3 based)","unrestricted"]
[null,null,null,null,null,null,null,null,null,null,"France","NF&A2P - Grade 2","NF&A2P - Grade 3","unrestricted"]
[{"$f":"('Power calculation'!E164*('Power calculation'!J163)+A21*('Power calculation'!K163))/1000","v":0},null,null,null,null,null,null,null,null,null,"Spain","EN50131 Grade 2","EN50131 Grade 3","unrestricted"]
[null,null,null,null,null,null,null,null,null,null,"Italy"]
["Required accu total capacity in Ah (min. battery capacity included)"]
["`= ((required standbytime x \"idle current\" + \"add. alarming current\" x \"max. current\"/1000)/(100-Wizard!E36)/100))"]
[]
[{"$f":"((('Power calculation'!E164*('Power calculation'!J163)+A21*('Power calculation'!K163))/1000)/((100-Wizard!E36)/100))","v":0}]
[]
["Required additional alarming current related to security regulations"]
[{"$f":"Wizard!E39","v":0}]
[]
[]
[]
["Available backup time in h related to the selected panel and ext. PUSs ( + additional alarm current)"]
["`= ((avail. Backup battery*1000)*(100-Wizard!E36)/100) / (idle current + add. Alarming current)"]
[]
[{"$f":"(('Power calculation'!D165*1000)*(100-Wizard!E36)/100) / ('Power calculation'!J163+A21)","v":{"$error":"#DIV/0!"}}]
[]
["Available backup battery power in Ah related to the selected panel and ext. PSUs:"]
[]
[{"$f":"SUM('Power calculation'!N9:'Power calculation'!N18)+(SUM('Power calculation'!N50:'Power calculation'!N55))","v":0}]